Workbook

Sheet Revision History (hidden)
B2: Revision History
C3: WRES2
B4: Version | C4: Date | D4: Change
B5: 1 | C5: 2019-04-03 | D5: Changed dates - Owen Chinembiri
B6: 2 | C6: 2019-06-06 | D6: Updated Template - MM
B7: 3 | C7: 2019-06-12 | D7: Backsheet Added - AB
B8: 3.1 | C8: 2019-06-13 | D8: Sheets locked down and upversioned for SharePoint and SDCS - RL
B9: 4 | C9: 2019-06-14 | D9: Upversioned and error message made visible - RL
B10: 5 | C10: 2019-06-17 | D10: Autocalculation formulae added back in from Mo's template - RL
B11: 5.1 | C11: 2019-07-01 | D11: Edited validation formula on Control Panel to check for right amount of cells - RL
B12: 6 | C12: 2019-07-10 | D12: Updated Cells
B13: 7 | C13: 2020-07-02 | D13: Updated backsheet/Cells/formulas. Work captured in DM-6438

Sheet Cover
B2: Workforce Race Equality Standards annual collection
B4: as at March-2020
C9: Period: | E9: April 2016-17

Sheet Control_Panel
K1: Backsheet check
B2: Workforce Race Equality Standards | K2: =IF(SUM(IF(ISERROR(INDIRECT("Backsheet!" &L2)),1,0))=0,0,1) -> 0 | L2: A2:ZZ500
B4: Validations
B5: Please correct all issues listed within the table below. If the issues are not corrected then the pro forma will fail the validation stage in SDCS.
B9: Trust - Frontsheet
B10: =IF(COUNTA(answer_cells)<>342,"Please complete all yellow answer cells on the 'Data for submission' tab. The 'Validation and Data Checks' tab can be used to identify which cells still need to be answered.","") ->  | J10: =B10 -> 
B11: =IF(SUM(COUNTIF(INDIRECT({"'Data for submission '!$f$69","'Data for submission '!$f$65:$f$66","'Data for submission '!$g$65:$g$66","'Data for submission '!$g$69","'Data for submission '!$h$69","'Data for submission '!$h$65:$h$66","'Data for submission '!$i$65:$i$66","'Data for submission '!$i$69","'Data for submission '!$j$65:$j$66","'Data for submission '!$j$69","'Data for submission '!$k$65:$k$66","'Data for submission '!$k$69","'Data for submission '!$k$62","'Data for submission '!$j$62","'Data for submission '!$i$62","'Data for submission '!$k$58","'Data for submission '!$j$58","'Data for submission '!$i$58","'Data for submission '!$f$48:$f$52","'Data for submission '!$g$48:$g$54","'Data for submission '!$h$48:$h$54","'Data for submission '!$i$48:$i$54","'Data for submission '!$j$48:$j$54","'Data for submission '!$k$48:$k$54","'Data for submission '!$k$38:$k$46","'Data for submission '!$j$33:$j$46","'Data for submission '!$i$33:$i$46","'Data for submission '!$h$33:$h$46","'Data for submission '!$g$33:$g$46","'Data for submission '!$f$33:$f$46","'Data for submission '!$f$17:$f$30","'Data for submission '!$g$17:$g$30","'Data for submission '!$h$17:$h$30","'Data for submission '!$i$17:$i$30","'Data for submission '!$j$17:$j$30","'Data for submission '!$k$17:$k$30"}),"*"))>0,"Please refer to the Validation and Data Checks Sheet.","") ->  | J11: =B11 -> 
B12: =IF(COUNTIF('Validation and Data Checks'!F18:K31,"Error")>0,"Please refer to Validation and Data Checks Tab","") ->  | J12: =B12 -> 
B13: =IF(SUMPRODUCT(N(LEN('Data for submission '!L17:L78)>255)),"You can only enter 255 characters in the notes field per cell, please can you review and amend","") ->  | J13: =B13 -> 
B14: =IF(K2=0,"","Cut and Paste is not permitted. This Template is broken. Please download a new template") ->  | J14: =IF(K2=0,"","Cut and Paste is not permitted. This Template is broken. Please download a new template") -> 
B15: =IF(COUNTIF('Validation and Data Checks'!F17:K31,"Error you have exceeded the character limit")>0,"Error you have exceeded the character limit. Please refer to Validation and Data Checks Tab","") -> 

Sheet Data for submission
B3: SubmissionTemplate
B5: Workforce Race Equality Standards 2019/20 template
G9: Answer Required
G10: Auto Populated
G11: N/A
F13: 2019 | I13: 2020
A14: INDICATOR | C14: DATA ITEM | E14: MEASURE | F14: WHITE | G14: BME | H14: ETHNICITY UNKNOWN/NULL | I14: WHITE | J14: BME | K14: ETHNICITY UNKNOWN/NULL | L14: Notes
A16: 1 | B16: Percentage of staff in each of the AfC Bands 1-9 OR Medical and Dental subgroups and VSM (including executive Board members) compared with the percentage of staff in the overall workforce | D16: 1a) Non Clinical workforce | F16: Verified figures | G16: Verified figures | H16: Verified figures | I16: Verified figures | J16: Verified figures | K16: Verified figures
C17: 1 | D17: Under Band 1 | E17: Headcount | F17: 16 | G17: 1 | H17: 3 | I17: 14 | J17: 1 | K17: 0 | M17: < Band 1 (i.e. Apprentices) | N17: Non Clinical | P17: White
C18: 2 | D18: Band 1 | E18: Headcount | F18: 495 | G18: 11 | H18: 21 | I18: 167 | J18: 2 | K18: 10 | M18: Band 1 | N18: Non Clinical | P18: BME
C19: 3 | D19: Band 2 | E19: Headcount | F19: 364 | G19: 12 | H19: 9 | I19: 795 | J19: 23 | K19: 16 | M19: Band 2 | N19: Non Clinical | P19: Unknown/Null
C20: 4 | D20: Band 3 | E20: Headcount | F20: 362 | G20: 3 | H20: 8 | I20: 365 | J20: 3 | K20: 7 | M20: Band 3 | N20: Non Clinical
C21: 5 | D21: Band 4 | E21: Headcount | F21: 139 | G21: 3 | H21: 4 | I21: 153 | J21: 3 | K21: 5 | M21: Band 4 | N21: Non Clinical
C22: 6 | D22: Band 5 | E22: Headcount | F22: 53 | G22: 0 | H22: 1 | I22: 49 | J22: 0 | K22: 0 | M22: Band 5 | N22: Non Clinical
C23: 7 | D23: Band 6 | E23: Headcount | F23: 65 | G23: 2 | H23: 2 | I23: 70 | J23: 1 | K23: 2 | M23: Band 6 | N23: Non Clinical
C24: 8 | D24: Band 7 | E24: Headcount | F24: 44 | G24: 3 | H24: 2 | I24: 48 | J24: 4 | K24: 2 | M24: Band 7 | N24: Non Clinical
C25: 9 | D25: Band 8A | E25: Headcount | F25: 42 | G25: 0 | H25: 0 | I25: 44 | J25: 1 | K25: 0 | M25: Band 8a | N25: Non Clinical
C26: 10 | D26: Band 8B | E26: Headcount | F26: 17 | G26: 0 | H26: 0 | I26: 18 | J26: 0 | K26: 0 | M26: Band 8b | N26: Non Clinical
C27: 11 | D27: Band 8C | E27: Headcount | F27: 14 | G27: 0 | H27: 0 | I27: 19 | J27: 0 | K27: 0 | M27: Band 8c | N27: Non Clinical
C28: 12 | D28: Band 8D | E28: Headcount | F28: 9 | G28: 0 | H28: 0 | I28: 8 | J28: 0 | K28: 0 | M28: Band 8d | N28: Non Clinical
C29: 13 | D29: Band 9 | E29: Headcount | F29: 0 | G29: 0 | H29: 0 | I29: 0 | J29: 0 | K29: 0 | M29: Band 9 | N29: Non Clinical
C30: 14 | D30: VSM | E30: Headcount | F30: 8 | G30: 0 | H30: 0 | I30: 7 | J30: 0 | K30: 0 | M30: VSM | N30: Non Clinical
D31: 1b) Clinical workforce of which Non Medical
C33: 15 | D33: Under Band 1 | E33: Headcount | F33: 3 | G33: 0 | H33: 0 | I33: 2 | J33: 0 | K33: 0 | M33: < Band 1 (i.e. Apprentices) | N33: Clinical
C34: 16 | D34: Band 1 | E34: Headcount | F34: 50 | G34: 0 | H34: 3 | I34: 18 | J34: 0 | K34: 0 | M34: Band 1 | N34: Clinical
C35: 17 | D35: Band 2 | E35: Headcount | F35: 1135 | G35: 32 | H35: 34 | I35: 1089 | J35: 33 | K35: 32 | M35: Band 2 | N35: Clinical
C36: 18 | D36: Band 3 | E36: Headcount | F36: 285 | G36: 3 | H36: 6 | I36: 331 | J36: 16 | K36: 6 | M36: Band 3 | N36: Clinical
C37: 19 | D37: Band 4 | E37: Headcount | F37: 90 | G37: 1 | H37: 5 | I37: 94 | J37: 2 | K37: 4 | M37: Band 4 | N37: Clinical
C38: 20 | D38: Band 5 | E38: Headcount | F38: 1055 | G38: 121 | H38: 34 | I38: 1004 | J38: 134 | K38: 32 | M38: Band 5 | N38: Clinical
C39: 21 | D39: Band 6 | E39: Headcount | F39: 772 | G39: 28 | H39: 26 | I39: 797 | J39: 34 | K39: 26 | M39: Band 6 | N39: Clinical
C40: 22 | D40: Band 7 | E40: Headcount | F40: 377 | G40: 9 | H40: 8 | I40: 406 | J40: 9 | K40: 8 | M40: Band 7 | N40: Clinical
C41: 23 | D41: Band 8A | E41: Headcount | F41: 74 | G41: 7 | H41: 2 | I41: 79 | J41: 7 | K41: 1 | M41: Band 8a | N41: Clinical
C42: 24 | D42: Band 8B | E42: Headcount | F42: 12 | G42: 2 | H42: 0 | I42: 12 | J42: 2 | K42: 0 | M42: Band 8b | N42: Clinical
C43: 25 | D43: Band 8C | E43: Headcount | F43: 13 | G43: 0 | H43: 0 | I43: 13 | J43: 0 | K43: 0 | M43: Band 8c | N43: Clinical
C44: 26 | D44: Band 8D | E44: Headcount | F44: 3 | G44: 0 | H44: 0 | I44: 3 | J44: 0 | K44: 0 | M44: Band 8d | N44: Clinical
C45: 27 | D45: Band 9 | E45: Headcount | F45: 1 | G45: 1 | H45: 1 | I45: 1 | J45: 1 | K45: 1 | M45: Band 9 | N45: Clinical
C46: 28 | D46: VSM | E46: Headcount | F46: 7 | G46: 2 | H46: 1 | I46: 7 | J46: 1 | K46: 0 | M46: VSM | N46: Clinical
D47: Of which Medical & Dental
C48: 29 | D48: Consultants | E48: Headcount | F48: 105 | G48: 149 | H48: 335 | I48: 105 | J48: 156 | K48: 300 | M48: Medical & Dental Consultant | N48: Clinical
C49: 30 | D49: of which Senior medical manager | E49: Headcount | F49: 0 | G49: 0 | H49: 0 | I49: 0 | J49: 0 | K49: 0
C50: 31 | D50: Non-consultant career grade | E50: Headcount | F50: 22 | G50: 66 | H50: 2 | I50: 24 | J50: 68 | K50: 2 | M50: Medical & Dental Non-consultant career grade | N50: Clinical
C51: 32 | D51: Trainee grades | E51: Headcount | F51: 100 | G51: 119 | H51: 15 | I51: 96 | J51: 140 | K51: 18 | M51: Medical & Dental Trainee grades | N51: Clinical
C52: 33 | D52: Other | E52: Headcount | F52: 0 | G52: 0 | H52: 0 | I52: 0 | J52: 0 | K52: 0 | M52: Medical & Dental Other | N52: Clinical
A53: 2 | B53: Relative likelihood of staff being appointed from shortlisting across all posts | C53: 34 | D53: Number of shortlisted applicants | E53: Headcount | F53: 533 | G53: 70 | H53: 6 | I53: 1145 | J53: 142 | K53: 61 | Q53: 2.552292524 | R53: 0.5559166561
C54: 35 | D54: Number appointed from shortlisting | E54: Headcount | F54: 266 | G54: 18 | H54: 0 | I54: 403 | J54: 39 | K54: 30
C55: 36 | D55: Relative likelihood of appointment from shortlisting | E55: Auto calculated | F55: =IFERROR(F54/F53,"") -> 0.4990619137 | G55: 0.2571428571 | H55: 0 | I55: 0.3519650655 | J55: 0.2746478873 | K55: 0.4918032787
C56: 37 | D56: Relative likelihood of White staff being appointed from shortlisting compared to BME staff | E56: Auto calculated | F56: =IFERROR(F55/G55,"") -> 1.940796331 | I56: =IFERROR(I55/J55,"") -> 1.281513828
A57: 3 | B57: Relative likelihood of staff entering the formal disciplinary process, as measured by entry into a formal disciplinary investigation Note: This indicator will be based on data from a two year rolling average of the current year and the previous year | C57: 38 | D57: Number of staff in workforce | E57: Auto calculated | F57: =IF(SUM(F17:F30)+SUM(F33:F46)+F48+SUM(F50:F52)=0,"",SUM(F17:F30)+SUM(F33:F46)+F48+SUM(F50:F52)) -> 5732 | G57: =IF(SUM(G17:G30)+SUM(G33:G46)+G48+SUM(G50:G52)=0,"",SUM(G17:G30)+SUM(G33:G46)+G48+SUM(G50:G52)) -> 575 | H57: =IF(SUM(H17:H30)+SUM(H33:H46)+H48+SUM(H50:H52)=0,"",SUM(H17:H30)+SUM(H33:H46)+H48+SUM(H50:H52)) -> 522 | I57: =IF(SUM(I17:I30)+SUM(I33:I46)+I48+SUM(I50:I52)=0,"",SUM(I17:I30)+SUM(I33:I46)+I48+SUM(I50:I52)) -> 5838 | J57: =IF(SUM(J17:J30)+SUM(J33:J46)+J48+SUM(J50:J52)=0,"",SUM(J17:J30)+SUM(J33:J46)+J48+SUM(J50:J52)) -> 641 | K57: =IF(SUM(K17:K30)+SUM(K33:K46)+K48+SUM(K50:K52)=0,"",SUM(K17:K30)+SUM(K33:K46)+K48+SUM(K50:K52)) -> 472 | Q57: 4.315868004 | R57: 0
C58: 39 | D58: Number of staff entering the formal disciplinary process | E58: Headcount | F58: 55 | G58: 4 | H58: 1 | I58: 56 | J58: 4 | K58: 2
C59: 40 | D59: Likelihood of staff entering the formal disciplinary process | E59: Auto calculated | F59: =IFERROR(F58/F57,"") -> 0.00959525471 | G59: 0.006956521739 | H59: 0.001915708812 | I59: 0.009592326139 | J59: 0.00624024961 | K59: 0.004237288136
C60: 41 | D60: Relative likelihood of BME staff entering the formal disciplinary process compared to White staff | E60: Auto calculated | G60: =IFERROR(G59/F59,"") -> 0.7249960474 | J60: =IFERROR(J59/I59,"") -> 0.6505460218
A61: 4 | B61: Relative likelihood of staff accessing non-mandatory training and CPD | C61: 42 | D61: Number of staff in workforce | E61: Auto calculated | F61: =F57 -> 5732 | G61: 575 | H61: 522 | I61: 5838 | J61: 641 | K61: 472 | Q61: 2.052158313 | R61: 0.1029898185
C62: 43 | D62: Number of staff accessing non-mandatory training and CPD: | E62: Headcount | F62: 5534 | G62: 509 | H62: 208 | I62: 5565 | J62: 566 | K62: 203
C63: 44 | D63: Likelihood of staff accessing non-mandatory training and CPD | E63: Auto calculated | F63: =IFERROR(F62/F61,"") -> 0.965457083 | G63: 0.8852173913 | H63: 0.398467433 | I63: 0.9532374101 | J63: 0.8829953198 | K63: 0.4300847458
C64: 45 | D64: Relative likelihood of White staff accessing non-mandatory training and CPD compared to BME staff | E64: Auto calculated | F64: =IFERROR(F63/G63,"") -> 1.090644053 | I64: =IFERROR(I63/J63,"") -> 1.079549788
A65: 9 | B65: Percentage difference between the organisations’ Board voting membership and its overall workforce Note: Only voting members of the Board should be included when considering this indicator | C65: 46 | D65: Total Board members | E65: Headcount | F65: 12 | G65: 2 | H65: 0 | I65: 12 | J65: 1 | K65: 0
C66: 47 | D66: of which: Voting Board members | E66: Headcount | F66: 11 | G66: 2 | H66: 0 | I66: 11 | J66: 1 | K66: 0
C67: 48 | D67: : Non Voting Board members | E67: Auto calculated | F67: =IFERROR(F65-F66,"Error") -> 1 | G67: 0 | H67: 0 | I67: 1 | J67: 0 | K67: 0
C68: 49 | D68: Total Board members | E68: Auto calculated | F68: =F65 -> 12 | G68: 2 | H68: 0 | I68: 12 | J68: 1 | K68: 0
C69: 50 | D69: of which: Exec Board members | E69: Headcount | F69: 6 | G69: 1 | H69: 0 | I69: 6 | J69: 1 | K69: 0
C70: 51 | D70: : Non Executive Board members | E70: Auto calculated | F70: =IFERROR(F68-F69,"Error") -> 6 | G70: 1 | H70: 0 | I70: 6 | J70: 0 | K70: 0
C71: 52 | D71: Number of staff in overall workforce | E71: Auto calculated | F71: =F57 -> 5732 | G71: =G57 -> 575 | H71: 522 | I71: =I57 -> 5838 | J71: =J57 -> 641 | K71: =K57 -> 472
C72: 53 | D72: Total Board members - % by Ethnicity | E72: Auto calculated | F72: =IFERROR(F65/($F$65+$G$65+$H$65),"") -> 0.8571428571 | G72: =IFERROR(G65/($F$65+$G$65+$H$65),"") -> 0.1428571429 | H72: =IFERROR(H65/($F$65+$G$65+$H$65),"") -> 0 | I72: =IFERROR(I65/(I65+J65+K65),"") -> 0.9230769231 | J72: =IFERROR(J65/(I65+J65+K65),"") -> 0.07692307692 | K72: =IFERROR(K65/(I65+J65+K65),"") -> 0
C73: 54 | D73: Voting Board Member - % by Ethnicity | E73: Auto calculated | F73: =IFERROR(F66/($F$66+$G$66+$H$66),"") -> 0.8461538462 | G73: =IFERROR(G66/($F$66+$G$66+$H$66),"") -> 0.1538461538 | H73: =IFERROR(H66/($F$66+$G$66+$H$66),"") -> 0 | I73: =IFERROR(I66/(I66+J66+K66),"") -> 0.9166666667 | J73: =IFERROR(J66/(I66+J66+K66),"") -> 0.08333333333 | K73: =IFERROR(K66/(I66+J66+K66),"") -> 0
C74: 55 | D74: Non Voting Board Member - % by Ethnicity | E74: Auto calculated | F74: =IFERROR(F67/($F$67+$G$67+$H$67),"") -> 1 | G74: =IFERROR(G67/($F$67+$G$67+$H$67),"") -> 0 | H74: =IFERROR(H67/($F$67+$G$67+$H$67),"") -> 0 | I74: =IFERROR(I67/(I67+J67+K67),"") -> 1 | J74: =IFERROR(J67/(I67+J67+K67),"") -> 0 | K74: =IFERROR(K67/(I67+J67+K67),"") -> 0
C75: 56 | D75: Executive Board Member - % by Ethnicity | E75: Auto calculated | F75: =IFERROR(F69/($F$69+$G$69+$H$69),"") -> 0.8571428571 | G75: =IFERROR(G69/($F$69+$G$69+$H$69),"") -> 0.1428571429 | H75: =IFERROR(H69/($F$69+$G$69+$H$69),"") -> 0 | I75: =IFERROR(I69/(I69+J69+K69),"") -> 0.8571428571 | J75: =IFERROR(J69/(I69+J69+K69),"") -> 0.1428571429 | K75: =IFERROR(K69/(I69+J69+K69),"") -> 0
C76: 57 | D76: Non Executive Board Member - % by Ethnicity | E76: Auto calculated | F76: =IFERROR(F70/($F$70+$G$70+$H$70),"") -> 0.8571428571 | G76: =IFERROR(G70/($F$70+$G$70+$H$70),"") -> 0.1428571429 | H76: =IFERROR(H70/($F$70+$G$70+$H$70),"") -> 0 | I76: =IFERROR(I70/(I70+J70+K70),"") -> 1 | J76: =IFERROR(J70/(I70+J70+K70),"") -> 0 | K76: =IFERROR(K70/(I70+J70+K70),"") -> 0
C77: 58 | D77: Overall workforce - % by Ethnicity | E77: Auto calculated | F77: =IFERROR(F71/($F$71+$G$71+$H$71),"") -> 0.8393615463 | G77: =IFERROR(G71/($F$71+$G$71+$H$71),"") -> 0.08419973642 | H77: =IFERROR(H71/($F$71+$G$71+$H$71),"") -> 0.07643871724 | I77: =IFERROR(I71/($I$71+$J$71+$K$71),"") -> 0.8398791541 | J77: =IFERROR(J71/($I$71+$J$71+$K$71),"") -> 0.0922169472 | K77: =IFERROR(K71/($I$71+$J$71+$K$71),"") -> 0.06790389872
C78: 59 | D78: Difference (Total Board -Overall workforce ) | E78: Auto calculated | F78: =IFERROR(F72-F77,"") -> 0.0177813108 | G78: 0.05865740644 | H78: -0.07643871724 | I78: 0.083197769 | J78: -0.01529387028 | K78: -0.06790389872

Sheet Validation and Data Checks
B3: SubmissionTemplate
B5: Workforce Race Equality Standards 2019/20 template
F10: =IF(F8>0,"There are errors. Please ensure all questions are answered","") -> 
F13: 2019 | I13: 2020
A14: INDICATOR | E14: MEASURE | F14: WHITE | G14: BME | H14: ETHNICITY UNKNOWN/NULL | I14: WHITE | J14: BME | K14: ETHNICITY UNKNOWN/NULL | L14: Notes
C15: DATA ITEM
A17: 1 | B17: Percentage of staff in each of the AfC Bands 1-9 OR Medical and Dental subgroups and VSM (including executive Board members) compared with the percentage of staff in the overall workforce | D17: 1a) Non Clinical workforce | F17: Verified figures | G17: Verified figures | H17: Verified figures | I17: Verified figures | J17: Verified figures | K17: Verified figures
C18: 1 | D18: Under Band 1 | E18: Headcount | F18: =IF('Data for submission '!F17="","No Data",IF(LEN('Data for submission '!F17)>255,"Error you have exceeded the character limit",IF(ISTEXT('Data for submission '!F17)=TRUE,"Error",IF(INT('Data for submission '!F17)<>'Data for submission '!F17,"Error",IF('Data for submission '!F17<0,"Error","OK"))))) -> OK | G18: =IF('Data for submission '!G17="","No Data",IF(LEN('Data for submission '!G17)>255,"Error you have exceeded the character limit",IF(ISTEXT('Data for submission '!G17)=TRUE,"Error",IF(INT('Data for submission '!G17)<>'Data for submission '!G17,"Error",IF('Data for submission '!G17<0,"Error","OK"))))) -> OK | H18: =IF('Data for submission '!H17="","No Data",IF(LEN('Data for submission '!H17)>255,"Error you have exceeded the character limit",IF(ISTEXT('Data for submission '!H17)=TRUE,"Error",IF(INT('Data for submission '!H17)<>'Data for submission '!H17,"Error",IF('Data for submission '!H17<0,"Error","OK"))))) -> OK | I18: =IF('Data for submission '!I17="","No Data",IF(LEN('Data for submission '!I17)>255,"Error you have exceeded the character limit",IF(ISTEXT('Data for submission '!I17)=TRUE,"Error",IF(INT('Data for submission '!I17)<>'Data for submission '!I17,"Error",IF('Data for submission '!I17<0,"Error","OK"))))) -> OK | J18: =IF('Data for submission '!J17="","No Data",IF(LEN('Data for submission '!J17)>255,"Error you have exceeded the character limit",IF(ISTEXT('Data for submission '!J17)=TRUE,"Error",IF(INT('Data for submission '!J17)<>'Data for submission '!J17,"Error",IF('Data for submission '!J17<0,"Error","OK"))))) -> OK | K18: =IF('Data for submission '!K17="","No Data",IF(LEN('Data for submission '!K17)>255,"Error you have exceeded the character limit",IF(ISTEXT('Data for submission '!K17)=TRUE,"Error",IF(INT('Data for submission '!K17)<>'Data for submission '!K17,"Error",IF('Data for submission '!K17<0,"Error","OK"))))) -> OK | L18: =IF('Data for submission '!L17="","",IF(LEN('Data for submission '!L17)>255,"Error you have exceeded the character limit","")) ->  | M18: < Band 1 (i.e. Apprentices) | N18: Non Clinical | P18: White
C19: 2 | D19: Band 1 | E19: Headcount | F19: =IF('Data for submission '!F18="","No Data",IF(LEN('Data for submission '!F18)>255,"Error you have exceeded the character limit",IF(ISTEXT('Data for submission '!F18)=TRUE,"Error",IF(INT('Data for submission '!F18)<>'Data for submission '!F18,"Error",IF('Data for submission '!F18<0,"Error","OK"))))) -> OK | G19: =IF('Data for submission '!G18="","No Data",IF(LEN('Data for submission '!G18)>255,"Error you have exceeded the character limit",IF(ISTEXT('Data for submission '!G18)=TRUE,"Error",IF(INT('Data for submission '!G18)<>'Data for submission '!G18,"Error",IF('Data for submission '!G18<0,"Error","OK"))))) -> OK | H19: =IF('Data for submission '!H18="","No Data",IF(LEN('Data for submission '!H18)>255,"Error you have exceeded the character limit",IF(ISTEXT('Data for submission '!H18)=TRUE,"Error",IF(INT('Data for submission '!H18)<>'Data for submission '!H18,"Error",IF('Data for submission '!H18<0,"Error","OK"))))) -> OK | I19: =IF('Data for submission '!I18="","No Data",IF(LEN('Data for submission '!I18)>255,"Error you have exceeded the character limit",IF(ISTEXT('Data for submission '!I18)=TRUE,"Error",IF(INT('Data for submission '!I18)<>'Data for submission '!I18,"Error",IF('Data for submission '!I18<0,"Error","OK"))))) -> OK | J19: =IF('Data for submission '!J18="","No Data",IF(LEN('Data for submission '!J18)>255,"Error you have exceeded the character limit",IF(ISTEXT('Data for submission '!J18)=TRUE,"Error",IF(INT('Data for submission '!J18)<>'Data for submission '!J18,"Error",IF('Data for submission '!J18<0,"Error","OK"))))) -> OK | K19: =IF('Data for submission '!K18="","No Data",IF(LEN('Data for submission '!K18)>255,"Error you have exceeded the character limit",IF(ISTEXT('Data for submission '!K18)=TRUE,"Error",IF(INT('Data for submission '!K18)<>'Data for submission '!K18,"Error",IF('Data for submission '!K18<0,"Error","OK"))))) -> OK | L19: =IF('Data for submission '!L18="","",IF(LEN('Data for submission '!L18)>255,"Error you have exceeded the character limit","")) ->  | M19: Band 1 | N19: Non Clinical | P19: BME
C20: 3 | D20: Band 2 | E20: Headcount | F20: =IF('Data for submission '!F19="","No Data",IF(LEN('Data for submission '!F19)>255,"Error you have exceeded the character limit",IF(ISTEXT('Data for submission '!F19)=TRUE,"Error",IF(INT('Data for submission '!F19)<>'Data for submission '!F19,"Error",IF('Data for submission '!F19<0,"Error","OK"))))) -> OK | G20: =IF('Data for submission '!G19="","No Data",IF(LEN('Data for submission '!G19)>255,"Error you have exceeded the character limit",IF(ISTEXT('Data for submission '!G19)=TRUE,"Error",IF(INT('Data for submission '!G19)<>'Data for submission '!G19,"Error",IF('Data for submission '!G19<0,"Error","OK"))))) -> OK | H20: =IF('Data for submission '!H19="","No Data",IF(LEN('Data for submission '!H19)>255,"Error you have exceeded the character limit",IF(ISTEXT('Data for submission '!H19)=TRUE,"Error",IF(INT('Data for submission '!H19)<>'Data for submission '!H19,"Error",IF('Data for submission '!H19<0,"Error","OK"))))) -> OK | I20: =IF('Data for submission '!I19="","No Data",IF(LEN('Data for submission '!I19)>255,"Error you have exceeded the character limit",IF(ISTEXT('Data for submission '!I19)=TRUE,"Error",IF(INT('Data for submission '!I19)<>'Data for submission '!I19,"Error",IF('Data for submission '!I19<0,"Error","OK"))))) -> OK | J20: =IF('Data for submission '!J19="","No Data",IF(LEN('Data for submission '!J19)>255,"Error you have exceeded the character limit",IF(ISTEXT('Data for submission '!J19)=TRUE,"Error",IF(INT('Data for submission '!J19)<>'Data for submission '!J19,"Error",IF('Data for submission '!J19<0,"Error","OK"))))) -> OK | K20: =IF('Data for submission '!K19="","No Data",IF(LEN('Data for submission '!K19)>255,"Error you have exceeded the character limit",IF(ISTEXT('Data for submission '!K19)=TRUE,"Error",IF(INT('Data for submission '!K19)<>'Data for submission '!K19,"Error",IF('Data for submission '!K19<0,"Error","OK"))))) -> OK | L20: =IF('Data for submission '!L19="","",IF(LEN('Data for submission '!L19)>255,"Error you have exceeded the character limit","")) ->  | M20: Band 2 | N20: Non Clinical | P20: Unknown/Null
C21: 4 | D21: Band 3 | E21: Headcount | F21: =IF('Data for submission '!F20="","No Data",IF(LEN('Data for submission '!F20)>255,"Error you have exceeded the character limit",IF(ISTEXT('Data for submission '!F20)=TRUE,"Error",IF(INT('Data for submission '!F20)<>'Data for submission '!F20,"Error",IF('Data for submission '!F20<0,"Error","OK"))))) -> OK | G21: =IF('Data for submission '!G20="","No Data",IF(LEN('Data for submission '!G20)>255,"Error you have exceeded the character limit",IF(ISTEXT('Data for submission '!G20)=TRUE,"Error",IF(INT('Data for submission '!G20)<>'Data for submission '!G20,"Error",IF('Data for submission '!G20<0,"Error","OK"))))) -> OK | H21: =IF('Data for submission '!H20="","No Data",IF(LEN('Data for submission '!H20)>255,"Error you have exceeded the character limit",IF(ISTEXT('Data for submission '!H20)=TRUE,"Error",IF(INT('Data for submission '!H20)<>'Data for submission '!H20,"Error",IF('Data for submission '!H20<0,"Error","OK"))))) -> OK | I21: =IF('Data for submission '!I20="","No Data",IF(LEN('Data for submission '!I20)>255,"Error you have exceeded the character limit",IF(ISTEXT('Data for submission '!I20)=TRUE,"Error",IF(INT('Data for submission '!I20)<>'Data for submission '!I20,"Error",IF('Data for submission '!I20<0,"Error","OK"))))) -> OK | J21: =IF('Data for submission '!J20="","No Data",IF(LEN('Data for submission '!J20)>255,"Error you have exceeded the character limit",IF(ISTEXT('Data for submission '!J20)=TRUE,"Error",IF(INT('Data for submission '!J20)<>'Data for submission '!J20,"Error",IF('Data for submission '!J20<0,"Error","OK"))))) -> OK | K21: =IF('Data for submission '!K20="","No Data",IF(LEN('Data for submission '!K20)>255,"Error you have exceeded the character limit",IF(ISTEXT('Data for submission '!K20)=TRUE,"Error",IF(INT('Data for submission '!K20)<>'Data for submission '!K20,"Error",IF('Data for submission '!K20<0,"Error","OK"))))) -> OK | L21: =IF('Data for submission '!L20="","",IF(LEN('Data for submission '!L20)>255,"Error you have exceeded the character limit","")) ->  | M21: Band 3 | N21: Non Clinical
C22: 5 | D22: Band 4 | E22: Headcount | F22: =IF('Data for submission '!F21="","No Data",IF(LEN('Data for submission '!F21)>255,"Error you have exceeded the character limit",IF(ISTEXT('Data for submission '!F21)=TRUE,"Error",IF(INT('Data for submission '!F21)<>'Data for submission '!F21,"Error",IF('Data for submission '!F21<0,"Error","OK"))))) -> OK | G22: =IF('Data for submission '!G21="","No Data",IF(LEN('Data for submission '!G21)>255,"Error you have exceeded the character limit",IF(ISTEXT('Data for submission '!G21)=TRUE,"Error",IF(INT('Data for submission '!G21)<>'Data for submission '!G21,"Error",IF('Data for submission '!G21<0,"Error","OK"))))) -> OK | H22: =IF('Data for submission '!H21="","No Data",IF(LEN('Data for submission '!H21)>255,"Error you have exceeded the character limit",IF(ISTEXT('Data for submission '!H21)=TRUE,"Error",IF(INT('Data for submission '!H21)<>'Data for submission '!H21,"Error",IF('Data for submission '!H21<0,"Error","OK"))))) -> OK | I22: =IF('Data for submission '!I21="","No Data",IF(LEN('Data for submission '!I21)>255,"Error you have exceeded the character limit",IF(ISTEXT('Data for submission '!I21)=TRUE,"Error",IF(INT('Data for submission '!I21)<>'Data for submission '!I21,"Error",IF('Data for submission '!I21<0,"Error","OK"))))) -> OK | J22: =IF('Data for submission '!J21="","No Data",IF(LEN('Data for submission '!J21)>255,"Error you have exceeded the character limit",IF(ISTEXT('Data for submission '!J21)=TRUE,"Error",IF(INT('Data for submission '!J21)<>'Data for submission '!J21,"Error",IF('Data for submission '!J21<0,"Error","OK"))))) -> OK | K22: =IF('Data for submission '!K21="","No Data",IF(LEN('Data for submission '!K21)>255,"Error you have exceeded the character limit",IF(ISTEXT('Data for submission '!K21)=TRUE,"Error",IF(INT('Data for submission '!K21)<>'Data for submission '!K21,"Error",IF('Data for submission '!K21<0,"Error","OK"))))) -> OK | L22: =IF('Data for submission '!L21="","",IF(LEN('Data for submission '!L21)>255,"Error you have exceeded the character limit","")) ->  | M22: Band 4 | N22: Non Clinical
C23: 6 | D23: Band 5 | E23: Headcount | F23: =IF('Data for submission '!F22="","No Data",IF(LEN('Data for submission '!F22)>255,"Error you have exceeded the character limit",IF(ISTEXT('Data for submission '!F22)=TRUE,"Error",IF(INT('Data for submission '!F22)<>'Data for submission '!F22,"Error",IF('Data for submission '!F22<0,"Error","OK"))))) -> OK | G23: =IF('Data for submission '!G22="","No Data",IF(LEN('Data for submission '!G22)>255,"Error you have exceeded the character limit",IF(ISTEXT('Data for submission '!G22)=TRUE,"Error",IF(INT('Data for submission '!G22)<>'Data for submission '!G22,"Error",IF('Data for submission '!G22<0,"Error","OK"))))) -> OK | H23: =IF('Data for submission '!H22="","No Data",IF(LEN('Data for submission '!H22)>255,"Error you have exceeded the character limit",IF(ISTEXT('Data for submission '!H22)=TRUE,"Error",IF(INT('Data for submission '!H22)<>'Data for submission '!H22,"Error",IF('Data for submission '!H22<0,"Error","OK"))))) -> OK | I23: =IF('Data for submission '!I22="","No Data",IF(LEN('Data for submission '!I22)>255,"Error you have exceeded the character limit",IF(ISTEXT('Data for submission '!I22)=TRUE,"Error",IF(INT('Data for submission '!I22)<>'Data for submission '!I22,"Error",IF('Data for submission '!I22<0,"Error","OK"))))) -> OK | J23: =IF('Data for submission '!J22="","No Data",IF(LEN('Data for submission '!J22)>255,"Error you have exceeded the character limit",IF(ISTEXT('Data for submission '!J22)=TRUE,"Error",IF(INT('Data for submission '!J22)<>'Data for submission '!J22,"Error",IF('Data for submission '!J22<0,"Error","OK"))))) -> OK | K23: =IF('Data for submission '!K22="","No Data",IF(LEN('Data for submission '!K22)>255,"Error you have exceeded the character limit",IF(ISTEXT('Data for submission '!K22)=TRUE,"Error",IF(INT('Data for submission '!K22)<>'Data for submission '!K22,"Error",IF('Data for submission '!K22<0,"Error","OK"))))) -> OK | L23: =IF('Data for submission '!L22="","",IF(LEN('Data for submission '!L22)>255,"Error you have exceeded the character limit","")) ->  | M23: Band 5 | N23: Non Clinical
C24: 7 | D24: Band 6 | E24: Headcount | F24: =IF('Data for submission '!F23="","No Data",IF(LEN('Data for submission '!F23)>255,"Error you have exceeded the character limit",IF(ISTEXT('Data for submission '!F23)=TRUE,"Error",IF(INT('Data for submission '!F23)<>'Data for submission '!F23,"Error",IF('Data for submission '!F23<0,"Error","OK"))))) -> OK | G24: =IF('Data for submission '!G23="","No Data",IF(LEN('Data for submission '!G23)>255,"Error you have exceeded the character limit",IF(ISTEXT('Data for submission '!G23)=TRUE,"Error",IF(INT('Data for submission '!G23)<>'Data for submission '!G23,"Error",IF('Data for submission '!G23<0,"Error","OK"))))) -> OK | H24: =IF('Data for submission '!H23="","No Data",IF(LEN('Data for submission '!H23)>255,"Error you have exceeded the character limit",IF(ISTEXT('Data for submission '!H23)=TRUE,"Error",IF(INT('Data for submission '!H23)<>'Data for submission '!H23,"Error",IF('Data for submission '!H23<0,"Error","OK"))))) -> OK | I24: =IF('Data for submission '!I23="","No Data",IF(LEN('Data for submission '!I23)>255,"Error you have exceeded the character limit",IF(ISTEXT('Data for submission '!I23)=TRUE,"Error",IF(INT('Data for submission '!I23)<>'Data for submission '!I23,"Error",IF('Data for submission '!I23<0,"Error","OK"))))) -> OK | J24: =IF('Data for submission '!J23="","No Data",IF(LEN('Data for submission '!J23)>255,"Error you have exceeded the character limit",IF(ISTEXT('Data for submission '!J23)=TRUE,"Error",IF(INT('Data for submission '!J23)<>'Data for submission '!J23,"Error",IF('Data for submission '!J23<0,"Error","OK"))))) -> OK | K24: =IF('Data for submission '!K23="","No Data",IF(LEN('Data for submission '!K23)>255,"Error you have exceeded the character limit",IF(ISTEXT('Data for submission '!K23)=TRUE,"Error",IF(INT('Data for submission '!K23)<>'Data for submission '!K23,"Error",IF('Data for submission '!K23<0,"Error","OK"))))) -> OK | L24: =IF('Data for submission '!L23="","",IF(LEN('Data for submission '!L23)>255,"Error you have exceeded the character limit","")) ->  | M24: Band 6 | N24: Non Clinical
C25: 8 | D25: Band 7 | E25: Headcount | F25: =IF('Data for submission '!F24="","No Data",IF(LEN('Data for submission '!F24)>255,"Error you have exceeded the character limit",IF(ISTEXT('Data for submission '!F24)=TRUE,"Error",IF(INT('Data for submission '!F24)<>'Data for submission '!F24,"Error",IF('Data for submission '!F24<0,"Error","OK"))))) -> OK | G25: =IF('Data for submission '!G24="","No Data",IF(LEN('Data for submission '!G24)>255,"Error you have exceeded the character limit",IF(ISTEXT('Data for submission '!G24)=TRUE,"Error",IF(INT('Data for submission '!G24)<>'Data for submission '!G24,"Error",IF('Data for submission '!G24<0,"Error","OK"))))) -> OK | H25: =IF('Data for submission '!H24="","No Data",IF(LEN('Data for submission '!H24)>255,"Error you have exceeded the character limit",IF(ISTEXT('Data for submission '!H24)=TRUE,"Error",IF(INT('Data for submission '!H24)<>'Data for submission '!H24,"Error",IF('Data for submission '!H24<0,"Error","OK"))))) -> OK | I25: =IF('Data for submission '!I24="","No Data",IF(LEN('Data for submission '!I24)>255,"Error you have exceeded the character limit",IF(ISTEXT('Data for submission '!I24)=TRUE,"Error",IF(INT('Data for submission '!I24)<>'Data for submission '!I24,"Error",IF('Data for submission '!I24<0,"Error","OK"))))) -> OK | J25: =IF('Data for submission '!J24="","No Data",IF(LEN('Data for submission '!J24)>255,"Error you have exceeded the character limit",IF(ISTEXT('Data for submission '!J24)=TRUE,"Error",IF(INT('Data for submission '!J24)<>'Data for submission '!J24,"Error",IF('Data for submission '!J24<0,"Error","OK"))))) -> OK | K25: =IF('Data for submission '!K24="","No Data",IF(LEN('Data for submission '!K24)>255,"Error you have exceeded the character limit",IF(ISTEXT('Data for submission '!K24)=TRUE,"Error",IF(INT('Data for submission '!K24)<>'Data for submission '!K24,"Error",IF('Data for submission '!K24<0,"Error","OK"))))) -> OK | L25: =IF('Data for submission '!L24="","",IF(LEN('Data for submission '!L24)>255,"Error you have exceeded the character limit","")) ->  | M25: Band 7 | N25: Non Clinical
C26: 9 | D26: Band 8A | E26: Headcount | F26: =IF('Data for submission '!F25="","No Data",IF(LEN('Data for submission '!F25)>255,"Error you have exceeded the character limit",IF(ISTEXT('Data for submission '!F25)=TRUE,"Error",IF(INT('Data for submission '!F25)<>'Data for submission '!F25,"Error",IF('Data for submission '!F25<0,"Error","OK"))))) -> OK | G26: =IF('Data for submission '!G25="","No Data",IF(LEN('Data for submission '!G25)>255,"Error you have exceeded the character limit",IF(ISTEXT('Data for submission '!G25)=TRUE,"Error",IF(INT('Data for submission '!G25)<>'Data for submission '!G25,"Error",IF('Data for submission '!G25<0,"Error","OK"))))) -> OK | H26: =IF('Data for submission '!H25="","No Data",IF(LEN('Data for submission '!H25)>255,"Error you have exceeded the character limit",IF(ISTEXT('Data for submission '!H25)=TRUE,"Error",IF(INT('Data for submission '!H25)<>'Data for submission '!H25,"Error",IF('Data for submission '!H25<0,"Error","OK"))))) -> OK | I26: =IF('Data for submission '!I25="","No Data",IF(LEN('Data for submission '!I25)>255,"Error you have exceeded the character limit",IF(ISTEXT('Data for submission '!I25)=TRUE,"Error",IF(INT('Data for submission '!I25)<>'Data for submission '!I25,"Error",IF('Data for submission '!I25<0,"Error","OK"))))) -> OK | J26: =IF('Data for submission '!J25="","No Data",IF(LEN('Data for submission '!J25)>255,"Error you have exceeded the character limit",IF(ISTEXT('Data for submission '!J25)=TRUE,"Error",IF(INT('Data for submission '!J25)<>'Data for submission '!J25,"Error",IF('Data for submission '!J25<0,"Error","OK"))))) -> OK | K26: =IF('Data for submission '!K25="","No Data",IF(LEN('Data for submission '!K25)>255,"Error you have exceeded the character limit",IF(ISTEXT('Data for submission '!K25)=TRUE,"Error",IF(INT('Data for submission '!K25)<>'Data for submission '!K25,"Error",IF('Data for submission '!K25<0,"Error","OK"))))) -> OK | L26: =IF('Data for submission '!L25="","",IF(LEN('Data for submission '!L25)>255,"Error you have exceeded the character limit","")) ->  | M26: Band 8a | N26: Non Clinical
C27: 10 | D27: Band 8B | E27: Headcount | F27: =IF('Data for submission '!F26="","No Data",IF(LEN('Data for submission '!F26)>255,"Error you have exceeded the character limit",IF(ISTEXT('Data for submission '!F26)=TRUE,"Error",IF(INT('Data for submission '!F26)<>'Data for submission '!F26,"Error",IF('Data for submission '!F26<0,"Error","OK"))))) -> OK | G27: =IF('Data for submission '!G26="","No Data",IF(LEN('Data for submission '!G26)>255,"Error you have exceeded the character limit",IF(ISTEXT('Data for submission '!G26)=TRUE,"Error",IF(INT('Data for submission '!G26)<>'Data for submission '!G26,"Error",IF('Data for submission '!G26<0,"Error","OK"))))) -> OK | H27: =IF('Data for submission '!H26="","No Data",IF(LEN('Data for submission '!H26)>255,"Error you have exceeded the character limit",IF(ISTEXT('Data for submission '!H26)=TRUE,"Error",IF(INT('Data for submission '!H26)<>'Data for submission '!H26,"Error",IF('Data for submission '!H26<0,"Error","OK"))))) -> OK | I27: =IF('Data for submission '!I26="","No Data",IF(LEN('Data for submission '!I26)>255,"Error you have exceeded the character limit",IF(ISTEXT('Data for submission '!I26)=TRUE,"Error",IF(INT('Data for submission '!I26)<>'Data for submission '!I26,"Error",IF('Data for submission '!I26<0,"Error","OK"))))) -> OK | J27: =IF('Data for submission '!J26="","No Data",IF(LEN('Data for submission '!J26)>255,"Error you have exceeded the character limit",IF(ISTEXT('Data for submission '!J26)=TRUE,"Error",IF(INT('Data for submission '!J26)<>'Data for submission '!J26,"Error",IF('Data for submission '!J26<0,"Error","OK"))))) -> OK | K27: =IF('Data for submission '!K26="","No Data",IF(LEN('Data for submission '!K26)>255,"Error you have exceeded the character limit",IF(ISTEXT('Data for submission '!K26)=TRUE,"Error",IF(INT('Data for submission '!K26)<>'Data for submission '!K26,"Error",IF('Data for submission '!K26<0,"Error","OK"))))) -> OK | L27: =IF('Data for submission '!L26="","",IF(LEN('Data for submission '!L26)>255,"Error you have exceeded the character limit","")) ->  | M27: Band 8b | N27: Non Clinical
C28: 11 | D28: Band 8C | E28: Headcount | F28: =IF('Data for submission '!F27="","No Data",IF(LEN('Data for submission '!F27)>255,"Error you have exceeded the character limit",IF(ISTEXT('Data for submission '!F27)=TRUE,"Error",IF(INT('Data for submission '!F27)<>'Data for submission '!F27,"Error",IF('Data for submission '!F27<0,"Error","OK"))))) -> OK | G28: =IF('Data for submission '!G27="","No Data",IF(LEN('Data for submission '!G27)>255,"Error you have exceeded the character limit",IF(ISTEXT('Data for submission '!G27)=TRUE,"Error",IF(INT('Data for submission '!G27)<>'Data for submission '!G27,"Error",IF('Data for submission '!G27<0,"Error","OK"))))) -> OK | H28: =IF('Data for submission '!H27="","No Data",IF(LEN('Data for submission '!H27)>255,"Error you have exceeded the character limit",IF(ISTEXT('Data for submission '!H27)=TRUE,"Error",IF(INT('Data for submission '!H27)<>'Data for submission '!H27,"Error",IF('Data for submission '!H27<0,"Error","OK"))))) -> OK | I28: =IF('Data for submission '!I27="","No Data",IF(LEN('Data for submission '!I27)>255,"Error you have exceeded the character limit",IF(ISTEXT('Data for submission '!I27)=TRUE,"Error",IF(INT('Data for submission '!I27)<>'Data for submission '!I27,"Error",IF('Data for submission '!I27<0,"Error","OK"))))) -> OK | J28: =IF('Data for submission '!J27="","No Data",IF(LEN('Data for submission '!J27)>255,"Error you have exceeded the character limit",IF(ISTEXT('Data for submission '!J27)=TRUE,"Error",IF(INT('Data for submission '!J27)<>'Data for submission '!J27,"Error",IF('Data for submission '!J27<0,"Error","OK"))))) -> OK | K28: =IF('Data for submission '!K27="","No Data",IF(LEN('Data for submission '!K27)>255,"Error you have exceeded the character limit",IF(ISTEXT('Data for submission '!K27)=TRUE,"Error",IF(INT('Data for submission '!K27)<>'Data for submission '!K27,"Error",IF('Data for submission '!K27<0,"Error","OK"))))) -> OK | L28: =IF('Data for submission '!L27="","",IF(LEN('Data for submission '!L27)>255,"Error you have exceeded the character limit","")) ->  | M28: Band 8c | N28: Non Clinical
C29: 12 | D29: Band 8D | E29: Headcount | F29: =IF('Data for submission '!F28="","No Data",IF(LEN('Data for submission '!F28)>255,"Error you have exceeded the character limit",IF(ISTEXT('Data for submission '!F28)=TRUE,"Error",IF(INT('Data for submission '!F28)<>'Data for submission '!F28,"Error",IF('Data for submission '!F28<0,"Error","OK"))))) -> OK | G29: =IF('Data for submission '!G28="","No Data",IF(LEN('Data for submission '!G28)>255,"Error you have exceeded the character limit",IF(ISTEXT('Data for submission '!G28)=TRUE,"Error",IF(INT('Data for submission '!G28)<>'Data for submission '!G28,"Error",IF('Data for submission '!G28<0,"Error","OK"))))) -> OK | H29: =IF('Data for submission '!H28="","No Data",IF(LEN('Data for submission '!H28)>255,"Error you have exceeded the character limit",IF(ISTEXT('Data for submission '!H28)=TRUE,"Error",IF(INT('Data for submission '!H28)<>'Data for submission '!H28,"Error",IF('Data for submission '!H28<0,"Error","OK"))))) -> OK | I29: =IF('Data for submission '!I28="","No Data",IF(LEN('Data for submission '!I28)>255,"Error you have exceeded the character limit",IF(ISTEXT('Data for submission '!I28)=TRUE,"Error",IF(INT('Data for submission '!I28)<>'Data for submission '!I28,"Error",IF('Data for submission '!I28<0,"Error","OK"))))) -> OK | J29: =IF('Data for submission '!J28="","No Data",IF(LEN('Data for submission '!J28)>255,"Error you have exceeded the character limit",IF(ISTEXT('Data for submission '!J28)=TRUE,"Error",IF(INT('Data for submission '!J28)<>'Data for submission '!J28,"Error",IF('Data for submission '!J28<0,"Error","OK"))))) -> OK | K29: =IF('Data for submission '!K28="","No Data",IF(LEN('Data for submission '!K28)>255,"Error you have exceeded the character limit",IF(ISTEXT('Data for submission '!K28)=TRUE,"Error",IF(INT('Data for submission '!K28)<>'Data for submission '!K28,"Error",IF('Data for submission '!K28<0,"Error","OK"))))) -> OK | L29: =IF('Data for submission '!L28="","",IF(LEN('Data for submission '!L28)>255,"Error you have exceeded the character limit","")) ->  | M29: Band 8d | N29: Non Clinical
C30: 13 | D30: Band 9 | E30: Headcount | F30: =IF('Data for submission '!F29="","No Data",IF(LEN('Data for submission '!F29)>255,"Error you have exceeded the character limit",IF(ISTEXT('Data for submission '!F29)=TRUE,"Error",IF(INT('Data for submission '!F29)<>'Data for submission '!F29,"Error",IF('Data for submission '!F29<0,"Error","OK"))))) -> OK | G30: =IF('Data for submission '!G29="","No Data",IF(LEN('Data for submission '!G29)>255,"Error you have exceeded the character limit",IF(ISTEXT('Data for submission '!G29)=TRUE,"Error",IF(INT('Data for submission '!G29)<>'Data for submission '!G29,"Error",IF('Data for submission '!G29<0,"Error","OK"))))) -> OK | H30: =IF('Data for submission '!H29="","No Data",IF(LEN('Data for submission '!H29)>255,"Error you have exceeded the character limit",IF(ISTEXT('Data for submission '!H29)=TRUE,"Error",IF(INT('Data for submission '!H29)<>'Data for submission '!H29,"Error",IF('Data for submission '!H29<0,"Error","OK"))))) -> OK | I30: =IF('Data for submission '!I29="","No Data",IF(LEN('Data for submission '!I29)>255,"Error you have exceeded the character limit",IF(ISTEXT('Data for submission '!I29)=TRUE,"Error",IF(INT('Data for submission '!I29)<>'Data for submission '!I29,"Error",IF('Data for submission '!I29<0,"Error","OK"))))) -> OK | J30: =IF('Data for submission '!J29="","No Data",IF(LEN('Data for submission '!J29)>255,"Error you have exceeded the character limit",IF(ISTEXT('Data for submission '!J29)=TRUE,"Error",IF(INT('Data for submission '!J29)<>'Data for submission '!J29,"Error",IF('Data for submission '!J29<0,"Error","OK"))))) -> OK | K30: =IF('Data for submission '!K29="","No Data",IF(LEN('Data for submission '!K29)>255,"Error you have exceeded the character limit",IF(ISTEXT('Data for submission '!K29)=TRUE,"Error",IF(INT('Data for submission '!K29)<>'Data for submission '!K29,"Error",IF('Data for submission '!K29<0,"Error","OK"))))) -> OK | L30: =IF('Data for submission '!L29="","",IF(LEN('Data for submission '!L29)>255,"Error you have exceeded the character limit","")) ->  | M30: Band 9 | N30: Non Clinical
C31: 14 | D31: VSM | E31: Headcount | F31: =IF('Data for submission '!F30="","No Data",IF(LEN('Data for submission '!F30)>255,"Error you have exceeded the character limit",IF(ISTEXT('Data for submission '!F30)=TRUE,"Error",IF(INT('Data for submission '!F30)<>'Data for submission '!F30,"Error",IF('Data for submission '!F30<0,"Error","OK"))))) -> OK | G31: =IF('Data for submission '!G30="","No Data",IF(LEN('Data for submission '!G30)>255,"Error you have exceeded the character limit",IF(ISTEXT('Data for submission '!G30)=TRUE,"Error",IF(INT('Data for submission '!G30)<>'Data for submission '!G30,"Error",IF('Data for submission '!G30<0,"Error","OK"))))) -> OK | H31: =IF('Data for submission '!H30="","No Data",IF(LEN('Data for submission '!H30)>255,"Error you have exceeded the character limit",IF(ISTEXT('Data for submission '!H30)=TRUE,"Error",IF(INT('Data for submission '!H30)<>'Data for submission '!H30,"Error",IF('Data for submission '!H30<0,"Error","OK"))))) -> OK | I31: =IF('Data for submission '!I30="","No Data",IF(LEN('Data for submission '!I30)>255,"Error you have exceeded the character limit",IF(ISTEXT('Data for submission '!I30)=TRUE,"Error",IF(INT('Data for submission '!I30)<>'Data for submission '!I30,"Error",IF('Data for submission '!I30<0,"Error","OK"))))) -> OK | J31: =IF('Data for submission '!J30="","No Data",IF(LEN('Data for submission '!J30)>255,"Error you have exceeded the character limit",IF(ISTEXT('Data for submission '!J30)=TRUE,"Error",IF(INT('Data for submission '!J30)<>'Data for submission '!J30,"Error",IF('Data for submission '!J30<0,"Error","OK"))))) -> OK | K31: =IF('Data for submission '!K30="","No Data",IF(LEN('Data for submission '!K30)>255,"Error you have exceeded the character limit",IF(ISTEXT('Data for submission '!K30)=TRUE,"Error",IF(INT('Data for submission '!K30)<>'Data for submission '!K30,"Error",IF('Data for submission '!K30<0,"Error","OK"))))) -> OK | L31: =IF('Data for submission '!L30="","",IF(LEN('Data for submission '!L30)>255,"Error you have exceeded the character limit","")) ->  | M31: VSM | N31: Non Clinical
D32: 1b) Clinical workforce
D33: of which Non Medical
C34: 15 | D34: Under Band 1 | E34: Headcount | F34: =IF('Data for submission '!F33="","No Data",IF(LEN('Data for submission '!F33)>255,"Error you have exceeded the character limit",IF(ISTEXT('Data for submission '!F33)=TRUE,"Error",IF(INT('Data for submission '!F33)<>'Data for submission '!F33,"Error",IF('Data for submission '!F33<0,"Error","OK"))))) -> OK | G34: =IF('Data for submission '!G33="","No Data",IF(LEN('Data for submission '!G33)>255,"Error you have exceeded the character limit",IF(ISTEXT('Data for submission '!G33)=TRUE,"Error",IF(INT('Data for submission '!G33)<>'Data for submission '!G33,"Error",IF('Data for submission '!G33<0,"Error","OK"))))) -> OK | H34: =IF('Data for submission '!H33="","No Data",IF(LEN('Data for submission '!H33)>255,"Error you have exceeded the character limit",IF(ISTEXT('Data for submission '!H33)=TRUE,"Error",IF(INT('Data for submission '!H33)<>'Data for submission '!H33,"Error",IF('Data for submission '!H33<0,"Error","OK"))))) -> OK | I34: =IF('Data for submission '!I33="","No Data",IF(LEN('Data for submission '!I33)>255,"Error you have exceeded the character limit",IF(ISTEXT('Data for submission '!I33)=TRUE,"Error",IF(INT('Data for submission '!I33)<>'Data for submission '!I33,"Error",IF('Data for submission '!I33<0,"Error","OK"))))) -> OK | J34: =IF('Data for submission '!J33="","No Data",IF(LEN('Data for submission '!J33)>255,"Error you have exceeded the character limit",IF(ISTEXT('Data for submission '!J33)=TRUE,"Error",IF(INT('Data for submission '!J33)<>'Data for submission '!J33,"Error",IF('Data for submission '!J33<0,"Error","OK"))))) -> OK | K34: =IF('Data for submission '!K33="","No Data",IF(LEN('Data for submission '!K33)>255,"Error you have exceeded the character limit",IF(ISTEXT('Data for submission '!K33)=TRUE,"Error",IF(INT('Data for submission '!K33)<>'Data for submission '!K33,"Error",IF('Data for submission '!K33<0,"Error","OK"))))) -> OK | L34: =IF('Data for submission '!L33="","",IF(LEN('Data for submission '!L33)>255,"Error you have exceeded the character limit","")) ->  | M34: < Band 1 (i.e. Apprentices) | N34: Clinical
C35: 16 | D35: Band 1 | E35: Headcount | F35: =IF('Data for submission '!F34="","No Data",IF(LEN('Data for submission '!F34)>255,"Error you have exceeded the character limit",IF(ISTEXT('Data for submission '!F34)=TRUE,"Error",IF(INT('Data for submission '!F34)<>'Data for submission '!F34,"Error",IF('Data for submission '!F34<0,"Error","OK"))))) -> OK | G35: =IF('Data for submission '!G34="","No Data",IF(LEN('Data for submission '!G34)>255,"Error you have exceeded the character limit",IF(ISTEXT('Data for submission '!G34)=TRUE,"Error",IF(INT('Data for submission '!G34)<>'Data for submission '!G34,"Error",IF('Data for submission '!G34<0,"Error","OK"))))) -> OK | H35: =IF('Data for submission '!H34="","No Data",IF(LEN('Data for submission '!H34)>255,"Error you have exceeded the character limit",IF(ISTEXT('Data for submission '!H34)=TRUE,"Error",IF(INT('Data for submission '!H34)<>'Data for submission '!H34,"Error",IF('Data for submission '!H34<0,"Error","OK"))))) -> OK | I35: =IF('Data for submission '!I34="","No Data",IF(LEN('Data for submission '!I34)>255,"Error you have exceeded the character limit",IF(ISTEXT('Data for submission '!I34)=TRUE,"Error",IF(INT('Data for submission '!I34)<>'Data for submission '!I34,"Error",IF('Data for submission '!I34<0,"Error","OK"))))) -> OK | J35: =IF('Data for submission '!J34="","No Data",IF(LEN('Data for submission '!J34)>255,"Error you have exceeded the character limit",IF(ISTEXT('Data for submission '!J34)=TRUE,"Error",IF(INT('Data for submission '!J34)<>'Data for submission '!J34,"Error",IF('Data for submission '!J34<0,"Error","OK"))))) -> OK | K35: =IF('Data for submission '!K34="","No Data",IF(LEN('Data for submission '!K34)>255,"Error you have exceeded the character limit",IF(ISTEXT('Data for submission '!K34)=TRUE,"Error",IF(INT('Data for submission '!K34)<>'Data for submission '!K34,"Error",IF('Data for submission '!K34<0,"Error","OK"))))) -> OK | L35: =IF('Data for submission '!L34="","",IF(LEN('Data for submission '!L34)>255,"Error you have exceeded the character limit","")) ->  | M35: Band 1 | N35: Clinical
C36: 17 | D36: Band 2 | E36: Headcount | F36: =IF('Data for submission '!F35="","No Data",IF(LEN('Data for submission '!F35)>255,"Error you have exceeded the character limit",IF(ISTEXT('Data for submission '!F35)=TRUE,"Error",IF(INT('Data for submission '!F35)<>'Data for submission '!F35,"Error",IF('Data for submission '!F35<0,"Error","OK"))))) -> OK | G36: =IF('Data for submission '!G35="","No Data",IF(LEN('Data for submission '!G35)>255,"Error you have exceeded the character limit",IF(ISTEXT('Data for submission '!G35)=TRUE,"Error",IF(INT('Data for submission '!G35)<>'Data for submission '!G35,"Error",IF('Data for submission '!G35<0,"Error","OK"))))) -> OK | H36: =IF('Data for submission '!H35="","No Data",IF(LEN('Data for submission '!H35)>255,"Error you have exceeded the character limit",IF(ISTEXT('Data for submission '!H35)=TRUE,"Error",IF(INT('Data for submission '!H35)<>'Data for submission '!H35,"Error",IF('Data for submission '!H35<0,"Error","OK"))))) -> OK | I36: =IF('Data for submission '!I35="","No Data",IF(LEN('Data for submission '!I35)>255,"Error you have exceeded the character limit",IF(ISTEXT('Data for submission '!I35)=TRUE,"Error",IF(INT('Data for submission '!I35)<>'Data for submission '!I35,"Error",IF('Data for submission '!I35<0,"Error","OK"))))) -> OK | J36: =IF('Data for submission '!J35="","No Data",IF(LEN('Data for submission '!J35)>255,"Error you have exceeded the character limit",IF(ISTEXT('Data for submission '!J35)=TRUE,"Error",IF(INT('Data for submission '!J35)<>'Data for submission '!J35,"Error",IF('Data for submission '!J35<0,"Error","OK"))))) -> OK | K36: =IF('Data for submission '!K35="","No Data",IF(LEN('Data for submission '!K35)>255,"Error you have exceeded the character limit",IF(ISTEXT('Data for submission '!K35)=TRUE,"Error",IF(INT('Data for submission '!K35)<>'Data for submission '!K35,"Error",IF('Data for submission '!K35<0,"Error","OK"))))) -> OK | L36: =IF('Data for submission '!L35="","",IF(LEN('Data for submission '!L35)>255,"Error you have exceeded the character limit","")) ->  | M36: Band 2 | N36: Clinical
C37: 18 | D37: Band 3 | E37: Headcount | F37: =IF('Data for submission '!F36="","No Data",IF(LEN('Data for submission '!F36)>255,"Error you have exceeded the character limit",IF(ISTEXT('Data for submission '!F36)=TRUE,"Error",IF(INT('Data for submission '!F36)<>'Data for submission '!F36,"Error",IF('Data for submission '!F36<0,"Error","OK"))))) -> OK | G37: =IF('Data for submission '!G36="","No Data",IF(LEN('Data for submission '!G36)>255,"Error you have exceeded the character limit",IF(ISTEXT('Data for submission '!G36)=TRUE,"Error",IF(INT('Data for submission '!G36)<>'Data for submission '!G36,"Error",IF('Data for submission '!G36<0,"Error","OK"))))) -> OK | H37: =IF('Data for submission '!H36="","No Data",IF(LEN('Data for submission '!H36)>255,"Error you have exceeded the character limit",IF(ISTEXT('Data for submission '!H36)=TRUE,"Error",IF(INT('Data for submission '!H36)<>'Data for submission '!H36,"Error",IF('Data for submission '!H36<0,"Error","OK"))))) -> OK | I37: =IF('Data for submission '!I36="","No Data",IF(LEN('Data for submission '!I36)>255,"Error you have exceeded the character limit",IF(ISTEXT('Data for submission '!I36)=TRUE,"Error",IF(INT('Data for submission '!I36)<>'Data for submission '!I36,"Error",IF('Data for submission '!I36<0,"Error","OK"))))) -> OK | J37: =IF('Data for submission '!J36="","No Data",IF(LEN('Data for submission '!J36)>255,"Error you have exceeded the character limit",IF(ISTEXT('Data for submission '!J36)=TRUE,"Error",IF(INT('Data for submission '!J36)<>'Data for submission '!J36,"Error",IF('Data for submission '!J36<0,"Error","OK"))))) -> OK | K37: =IF('Data for submission '!K36="","No Data",IF(LEN('Data for submission '!K36)>255,"Error you have exceeded the character limit",IF(ISTEXT('Data for submission '!K36)=TRUE,"Error",IF(INT('Data for submission '!K36)<>'Data for submission '!K36,"Error",IF('Data for submission '!K36<0,"Error","OK"))))) -> OK | L37: =IF('Data for submission '!L36="","",IF(LEN('Data for submission '!L36)>255,"Error you have exceeded the character limit","")) ->  | M37: Band 3 | N37: Clinical
C38: 19 | D38: Band 4 | E38: Headcount | F38: =IF('Data for submission '!F37="","No Data",IF(LEN('Data for submission '!F37)>255,"Error you have exceeded the character limit",IF(ISTEXT('Data for submission '!F37)=TRUE,"Error",IF(INT('Data for submission '!F37)<>'Data for submission '!F37,"Error",IF('Data for submission '!F37<0,"Error","OK"))))) -> OK | G38: =IF('Data for submission '!G37="","No Data",IF(LEN('Data for submission '!G37)>255,"Error you have exceeded the character limit",IF(ISTEXT('Data for submission '!G37)=TRUE,"Error",IF(INT('Data for submission '!G37)<>'Data for submission '!G37,"Error",IF('Data for submission '!G37<0,"Error","OK"))))) -> OK | H38: =IF('Data for submission '!H37="","No Data",IF(LEN('Data for submission '!H37)>255,"Error you have exceeded the character limit",IF(ISTEXT('Data for submission '!H37)=TRUE,"Error",IF(INT('Data for submission '!H37)<>'Data for submission '!H37,"Error",IF('Data for submission '!H37<0,"Error","OK"))))) -> OK | I38: =IF('Data for submission '!I37="","No Data",IF(LEN('Data for submission '!I37)>255,"Error you have exceeded the character limit",IF(ISTEXT('Data for submission '!I37)=TRUE,"Error",IF(INT('Data for submission '!I37)<>'Data for submission '!I37,"Error",IF('Data for submission '!I37<0,"Error","OK"))))) -> OK | J38: =IF('Data for submission '!J37="","No Data",IF(LEN('Data for submission '!J37)>255,"Error you have exceeded the character limit",IF(ISTEXT('Data for submission '!J37)=TRUE,"Error",IF(INT('Data for submission '!J37)<>'Data for submission '!J37,"Error",IF('Data for submission '!J37<0,"Error","OK"))))) -> OK | K38: =IF('Data for submission '!K37="","No Data",IF(LEN('Data for submission '!K37)>255,"Error you have exceeded the character limit",IF(ISTEXT('Data for submission '!K37)=TRUE,"Error",IF(INT('Data for submission '!K37)<>'Data for submission '!K37,"Error",IF('Data for submission '!K37<0,"Error","OK"))))) -> OK | L38: =IF('Data for submission '!L37="","",IF(LEN('Data for submission '!L37)>255,"Error you have exceeded the character limit","")) ->  | M38: Band 4 | N38: Clinical
C39: 20 | D39: Band 5 | E39: Headcount | F39: =IF('Data for submission '!F38="","No Data",IF(LEN('Data for submission '!F38)>255,"Error you have exceeded the character limit",IF(ISTEXT('Data for submission '!F38)=TRUE,"Error",IF(INT('Data for submission '!F38)<>'Data for submission '!F38,"Error",IF('Data for submission '!F38<0,"Error","OK"))))) -> OK | G39: =IF('Data for submission '!G38="","No Data",IF(LEN('Data for submission '!G38)>255,"Error you have exceeded the character limit",IF(ISTEXT('Data for submission '!G38)=TRUE,"Error",IF(INT('Data for submission '!G38)<>'Data for submission '!G38,"Error",IF('Data for submission '!G38<0,"Error","OK"))))) -> OK | H39: =IF('Data for submission '!H38="","No Data",IF(LEN('Data for submission '!H38)>255,"Error you have exceeded the character limit",IF(ISTEXT('Data for submission '!H38)=TRUE,"Error",IF(INT('Data for submission '!H38)<>'Data for submission '!H38,"Error",IF('Data for submission '!H38<0,"Error","OK"))))) -> OK | I39: =IF('Data for submission '!I38="","No Data",IF(LEN('Data for submission '!I38)>255,"Error you have exceeded the character limit",IF(ISTEXT('Data for submission '!I38)=TRUE,"Error",IF(INT('Data for submission '!I38)<>'Data for submission '!I38,"Error",IF('Data for submission '!I38<0,"Error","OK"))))) -> OK | J39: =IF('Data for submission '!J38="","No Data",IF(LEN('Data for submission '!J38)>255,"Error you have exceeded the character limit",IF(ISTEXT('Data for submission '!J38)=TRUE,"Error",IF(INT('Data for submission '!J38)<>'Data for submission '!J38,"Error",IF('Data for submission '!J38<0,"Error","OK"))))) -> OK | K39: =IF('Data for submission '!K38="","No Data",IF(LEN('Data for submission '!K38)>255,"Error you have exceeded the character limit",IF(ISTEXT('Data for submission '!K38)=TRUE,"Error",IF(INT('Data for submission '!K38)<>'Data for submission '!K38,"Error",IF('Data for submission '!K38<0,"Error","OK"))))) -> OK | L39: =IF('Data for submission '!L38="","",IF(LEN('Data for submission '!L38)>255,"Error you have exceeded the character limit","")) ->  | M39: Band 5 | N39: Clinical
C40: 21 | D40: Band 6 | E40: Headcount | F40: =IF('Data for submission '!F39="","No Data",IF(LEN('Data for submission '!F39)>255,"Error you have exceeded the character limit",IF(ISTEXT('Data for submission '!F39)=TRUE,"Error",IF(INT('Data for submission '!F39)<>'Data for submission '!F39,"Error",IF('Data for submission '!F39<0,"Error","OK"))))) -> OK | G40: =IF('Data for submission '!G39="","No Data",IF(LEN('Data for submission '!G39)>255,"Error you have exceeded the character limit",IF(ISTEXT('Data for submission '!G39)=TRUE,"Error",IF(INT('Data for submission '!G39)<>'Data for submission '!G39,"Error",IF('Data for submission '!G39<0,"Error","OK"))))) -> OK | H40: =IF('Data for submission '!H39="","No Data",IF(LEN('Data for submission '!H39)>255,"Error you have exceeded the character limit",IF(ISTEXT('Data for submission '!H39)=TRUE,"Error",IF(INT('Data for submission '!H39)<>'Data for submission '!H39,"Error",IF('Data for submission '!H39<0,"Error","OK"))))) -> OK | I40: =IF('Data for submission '!I39="","No Data",IF(LEN('Data for submission '!I39)>255,"Error you have exceeded the character limit",IF(ISTEXT('Data for submission '!I39)=TRUE,"Error",IF(INT('Data for submission '!I39)<>'Data for submission '!I39,"Error",IF('Data for submission '!I39<0,"Error","OK"))))) -> OK | J40: =IF('Data for submission '!J39="","No Data",IF(LEN('Data for submission '!J39)>255,"Error you have exceeded the character limit",IF(ISTEXT('Data for submission '!J39)=TRUE,"Error",IF(INT('Data for submission '!J39)<>'Data for submission '!J39,"Error",IF('Data for submission '!J39<0,"Error","OK"))))) -> OK | K40: =IF('Data for submission '!K39="","No Data",IF(LEN('Data for submission '!K39)>255,"Error you have exceeded the character limit",IF(ISTEXT('Data for submission '!K39)=TRUE,"Error",IF(INT('Data for submission '!K39)<>'Data for submission '!K39,"Error",IF('Data for submission '!K39<0,"Error","OK"))))) -> OK | L40: =IF('Data for submission '!L39="","",IF(LEN('Data for submission '!L39)>255,"Error you have exceeded the character limit","")) ->  | M40: Band 6 | N40: Clinical
C41: 22 | D41: Band 7 | E41: Headcount | F41: =IF('Data for submission '!F40="","No Data",IF(LEN('Data for submission '!F40)>255,"Error you have exceeded the character limit",IF(ISTEXT('Data for submission '!F40)=TRUE,"Error",IF(INT('Data for submission '!F40)<>'Data for submission '!F40,"Error",IF('Data for submission '!F40<0,"Error","OK"))))) -> OK | G41: =IF('Data for submission '!G40="","No Data",IF(LEN('Data for submission '!G40)>255,"Error you have exceeded the character limit",IF(ISTEXT('Data for submission '!G40)=TRUE,"Error",IF(INT('Data for submission '!G40)<>'Data for submission '!G40,"Error",IF('Data for submission '!G40<0,"Error","OK"))))) -> OK | H41: =IF('Data for submission '!H40="","No Data",IF(LEN('Data for submission '!H40)>255,"Error you have exceeded the character limit",IF(ISTEXT('Data for submission '!H40)=TRUE,"Error",IF(INT('Data for submission '!H40)<>'Data for submission '!H40,"Error",IF('Data for submission '!H40<0,"Error","OK"))))) -> OK | I41: =IF('Data for submission '!I40="","No Data",IF(LEN('Data for submission '!I40)>255,"Error you have exceeded the character limit",IF(ISTEXT('Data for submission '!I40)=TRUE,"Error",IF(INT('Data for submission '!I40)<>'Data for submission '!I40,"Error",IF('Data for submission '!I40<0,"Error","OK"))))) -> OK | J41: =IF('Data for submission '!J40="","No Data",IF(LEN('Data for submission '!J40)>255,"Error you have exceeded the character limit",IF(ISTEXT('Data for submission '!J40)=TRUE,"Error",IF(INT('Data for submission '!J40)<>'Data for submission '!J40,"Error",IF('Data for submission '!J40<0,"Error","OK"))))) -> OK | K41: =IF('Data for submission '!K40="","No Data",IF(LEN('Data for submission '!K40)>255,"Error you have exceeded the character limit",IF(ISTEXT('Data for submission '!K40)=TRUE,"Error",IF(INT('Data for submission '!K40)<>'Data for submission '!K40,"Error",IF('Data for submission '!K40<0,"Error","OK"))))) -> OK | L41: =IF('Data for submission '!L40="","",IF(LEN('Data for submission '!L40)>255,"Error you have exceeded the character limit","")) ->  | M41: Band 7 | N41: Clinical
C42: 23 | D42: Band 8A | E42: Headcount | F42: =IF('Data for submission '!F41="","No Data",IF(LEN('Data for submission '!F41)>255,"Error you have exceeded the character limit",IF(ISTEXT('Data for submission '!F41)=TRUE,"Error",IF(INT('Data for submission '!F41)<>'Data for submission '!F41,"Error",IF('Data for submission '!F41<0,"Error","OK"))))) -> OK | G42: =IF('Data for submission '!G41="","No Data",IF(LEN('Data for submission '!G41)>255,"Error you have exceeded the character limit",IF(ISTEXT('Data for submission '!G41)=TRUE,"Error",IF(INT('Data for submission '!G41)<>'Data for submission '!G41,"Error",IF('Data for submission '!G41<0,"Error","OK"))))) -> OK | H42: =IF('Data for submission '!H41="","No Data",IF(LEN('Data for submission '!H41)>255,"Error you have exceeded the character limit",IF(ISTEXT('Data for submission '!H41)=TRUE,"Error",IF(INT('Data for submission '!H41)<>'Data for submission '!H41,"Error",IF('Data for submission '!H41<0,"Error","OK"))))) -> OK | I42: =IF('Data for submission '!I41="","No Data",IF(LEN('Data for submission '!I41)>255,"Error you have exceeded the character limit",IF(ISTEXT('Data for submission '!I41)=TRUE,"Error",IF(INT('Data for submission '!I41)<>'Data for submission '!I41,"Error",IF('Data for submission '!I41<0,"Error","OK"))))) -> OK | J42: =IF('Data for submission '!J41="","No Data",IF(LEN('Data for submission '!J41)>255,"Error you have exceeded the character limit",IF(ISTEXT('Data for submission '!J41)=TRUE,"Error",IF(INT('Data for submission '!J41)<>'Data for submission '!J41,"Error",IF('Data for submission '!J41<0,"Error","OK"))))) -> OK | K42: =IF('Data for submission '!K41="","No Data",IF(LEN('Data for submission '!K41)>255,"Error you have exceeded the character limit",IF(ISTEXT('Data for submission '!K41)=TRUE,"Error",IF(INT('Data for submission '!K41)<>'Data for submission '!K41,"Error",IF('Data for submission '!K41<0,"Error","OK"))))) -> OK | L42: =IF('Data for submission '!L41="","",IF(LEN('Data for submission '!L41)>255,"Error you have exceeded the character limit","")) ->  | M42: Band 8a | N42: Clinical
C43: 24 | D43: Band 8B | E43: Headcount | F43: =IF('Data for submission '!F42="","No Data",IF(LEN('Data for submission '!F42)>255,"Error you have exceeded the character limit",IF(ISTEXT('Data for submission '!F42)=TRUE,"Error",IF(INT('Data for submission '!F42)<>'Data for submission '!F42,"Error",IF('Data for submission '!F42<0,"Error","OK"))))) -> OK | G43: =IF('Data for submission '!G42="","No Data",IF(LEN('Data for submission '!G42)>255,"Error you have exceeded the character limit",IF(ISTEXT('Data for submission '!G42)=TRUE,"Error",IF(INT('Data for submission '!G42)<>'Data for submission '!G42,"Error",IF('Data for submission '!G42<0,"Error","OK"))))) -> OK | H43: =IF('Data for submission '!H42="","No Data",IF(LEN('Data for submission '!H42)>255,"Error you have exceeded the character limit",IF(ISTEXT('Data for submission '!H42)=TRUE,"Error",IF(INT('Data for submission '!H42)<>'Data for submission '!H42,"Error",IF('Data for submission '!H42<0,"Error","OK"))))) -> OK | I43: =IF('Data for submission '!I42="","No Data",IF(LEN('Data for submission '!I42)>255,"Error you have exceeded the character limit",IF(ISTEXT('Data for submission '!I42)=TRUE,"Error",IF(INT('Data for submission '!I42)<>'Data for submission '!I42,"Error",IF('Data for submission '!I42<0,"Error","OK"))))) -> OK | J43: =IF('Data for submission '!J42="","No Data",IF(LEN('Data for submission '!J42)>255,"Error you have exceeded the character limit",IF(ISTEXT('Data for submission '!J42)=TRUE,"Error",IF(INT('Data for submission '!J42)<>'Data for submission '!J42,"Error",IF('Data for submission '!J42<0,"Error","OK"))))) -> OK | K43: =IF('Data for submission '!K42="","No Data",IF(LEN('Data for submission '!K42)>255,"Error you have exceeded the character limit",IF(ISTEXT('Data for submission '!K42)=TRUE,"Error",IF(INT('Data for submission '!K42)<>'Data for submission '!K42,"Error",IF('Data for submission '!K42<0,"Error","OK"))))) -> OK | L43: =IF('Data for submission '!L42="","",IF(LEN('Data for submission '!L42)>255,"Error you have exceeded the character limit","")) ->  | M43: Band 8b | N43: Clinical
C44: 25 | D44: Band 8C | E44: Headcount | F44: =IF('Data for submission '!F43="","No Data",IF(LEN('Data for submission '!F43)>255,"Error you have exceeded the character limit",IF(ISTEXT('Data for submission '!F43)=TRUE,"Error",IF(INT('Data for submission '!F43)<>'Data for submission '!F43,"Error",IF('Data for submission '!F43<0,"Error","OK"))))) -> OK | G44: =IF('Data for submission '!G43="","No Data",IF(LEN('Data for submission '!G43)>255,"Error you have exceeded the character limit",IF(ISTEXT('Data for submission '!G43)=TRUE,"Error",IF(INT('Data for submission '!G43)<>'Data for submission '!G43,"Error",IF('Data for submission '!G43<0,"Error","OK"))))) -> OK | H44: =IF('Data for submission '!H43="","No Data",IF(LEN('Data for submission '!H43)>255,"Error you have exceeded the character limit",IF(ISTEXT('Data for submission '!H43)=TRUE,"Error",IF(INT('Data for submission '!H43)<>'Data for submission '!H43,"Error",IF('Data for submission '!H43<0,"Error","OK"))))) -> OK | I44: =IF('Data for submission '!I43="","No Data",IF(LEN('Data for submission '!I43)>255,"Error you have exceeded the character limit",IF(ISTEXT('Data for submission '!I43)=TRUE,"Error",IF(INT('Data for submission '!I43)<>'Data for submission '!I43,"Error",IF('Data for submission '!I43<0,"Error","OK"))))) -> OK | J44: =IF('Data for submission '!J43="","No Data",IF(LEN('Data for submission '!J43)>255,"Error you have exceeded the character limit",IF(ISTEXT('Data for submission '!J43)=TRUE,"Error",IF(INT('Data for submission '!J43)<>'Data for submission '!J43,"Error",IF('Data for submission '!J43<0,"Error","OK"))))) -> OK | K44: =IF('Data for submission '!K43="","No Data",IF(LEN('Data for submission '!K43)>255,"Error you have exceeded the character limit",IF(ISTEXT('Data for submission '!K43)=TRUE,"Error",IF(INT('Data for submission '!K43)<>'Data for submission '!K43,"Error",IF('Data for submission '!K43<0,"Error","OK"))))) -> OK | L44: =IF('Data for submission '!L43="","",IF(LEN('Data for submission '!L43)>255,"Error you have exceeded the character limit","")) ->  | M44: Band 8c | N44: Clinical
C45: 26 | D45: Band 8D | E45: Headcount | F45: =IF('Data for submission '!F44="","No Data",IF(LEN('Data for submission '!F44)>255,"Error you have exceeded the character limit",IF(ISTEXT('Data for submission '!F44)=TRUE,"Error",IF(INT('Data for submission '!F44)<>'Data for submission '!F44,"Error",IF('Data for submission '!F44<0,"Error","OK"))))) -> OK | G45: =IF('Data for submission '!G44="","No Data",IF(LEN('Data for submission '!G44)>255,"Error you have exceeded the character limit",IF(ISTEXT('Data for submission '!G44)=TRUE,"Error",IF(INT('Data for submission '!G44)<>'Data for submission '!G44,"Error",IF('Data for submission '!G44<0,"Error","OK"))))) -> OK | H45: =IF('Data for submission '!H44="","No Data",IF(LEN('Data for submission '!H44)>255,"Error you have exceeded the character limit",IF(ISTEXT('Data for submission '!H44)=TRUE,"Error",IF(INT('Data for submission '!H44)<>'Data for submission '!H44,"Error",IF('Data for submission '!H44<0,"Error","OK"))))) -> OK | I45: =IF('Data for submission '!I44="","No Data",IF(LEN('Data for submission '!I44)>255,"Error you have exceeded the character limit",IF(ISTEXT('Data for submission '!I44)=TRUE,"Error",IF(INT('Data for submission '!I44)<>'Data for submission '!I44,"Error",IF('Data for submission '!I44<0,"Error","OK"))))) -> OK | J45: =IF('Data for submission '!J44="","No Data",IF(LEN('Data for submission '!J44)>255,"Error you have exceeded the character limit",IF(ISTEXT('Data for submission '!J44)=TRUE,"Error",IF(INT('Data for submission '!J44)<>'Data for submission '!J44,"Error",IF('Data for submission '!J44<0,"Error","OK"))))) -> OK | K45: =IF('Data for submission '!K44="","No Data",IF(LEN('Data for submission '!K44)>255,"Error you have exceeded the character limit",IF(ISTEXT('Data for submission '!K44)=TRUE,"Error",IF(INT('Data for submission '!K44)<>'Data for submission '!K44,"Error",IF('Data for submission '!K44<0,"Error","OK"))))) -> OK | L45: =IF('Data for submission '!L44="","",IF(LEN('Data for submission '!L44)>255,"Error you have exceeded the character limit","")) ->  | M45: Band 8d | N45: Clinical
C46: 27 | D46: Band 9 | E46: Headcount | F46: =IF('Data for submission '!F45="","No Data",IF(LEN('Data for submission '!F45)>255,"Error you have exceeded the character limit",IF(ISTEXT('Data for submission '!F45)=TRUE,"Error",IF(INT('Data for submission '!F45)<>'Data for submission '!F45,"Error",IF('Data for submission '!F45<0,"Error","OK"))))) -> OK | G46: =IF('Data for submission '!G45="","No Data",IF(LEN('Data for submission '!G45)>255,"Error you have exceeded the character limit",IF(ISTEXT('Data for submission '!G45)=TRUE,"Error",IF(INT('Data for submission '!G45)<>'Data for submission '!G45,"Error",IF('Data for submission '!G45<0,"Error","OK"))))) -> OK | H46: =IF('Data for submission '!H45="","No Data",IF(LEN('Data for submission '!H45)>255,"Error you have exceeded the character limit",IF(ISTEXT('Data for submission '!H45)=TRUE,"Error",IF(INT('Data for submission '!H45)<>'Data for submission '!H45,"Error",IF('Data for submission '!H45<0,"Error","OK"))))) -> OK | I46: =IF('Data for submission '!I45="","No Data",IF(LEN('Data for submission '!I45)>255,"Error you have exceeded the character limit",IF(ISTEXT('Data for submission '!I45)=TRUE,"Error",IF(INT('Data for submission '!I45)<>'Data for submission '!I45,"Error",IF('Data for submission '!I45<0,"Error","OK"))))) -> OK | J46: =IF('Data for submission '!J45="","No Data",IF(LEN('Data for submission '!J45)>255,"Error you have exceeded the character limit",IF(ISTEXT('Data for submission '!J45)=TRUE,"Error",IF(INT('Data for submission '!J45)<>'Data for submission '!J45,"Error",IF('Data for submission '!J45<0,"Error","OK"))))) -> OK | K46: =IF('Data for submission '!K45="","No Data",IF(LEN('Data for submission '!K45)>255,"Error you have exceeded the character limit",IF(ISTEXT('Data for submission '!K45)=TRUE,"Error",IF(INT('Data for submission '!K45)<>'Data for submission '!K45,"Error",IF('Data for submission '!K45<0,"Error","OK"))))) -> OK | L46: =IF('Data for submission '!L45="","",IF(LEN('Data for submission '!L45)>255,"Error you have exceeded the character limit","")) ->  | M46: Band 9 | N46: Clinical
C47: 28 | D47: VSM | E47: Headcount | F47: =IF('Data for submission '!F46="","No Data",IF(LEN('Data for submission '!F46)>255,"Error you have exceeded the character limit",IF(ISTEXT('Data for submission '!F46)=TRUE,"Error",IF(INT('Data for submission '!F46)<>'Data for submission '!F46,"Error",IF('Data for submission '!F46<0,"Error","OK"))))) -> OK | G47: =IF('Data for submission '!G46="","No Data",IF(LEN('Data for submission '!G46)>255,"Error you have exceeded the character limit",IF(ISTEXT('Data for submission '!G46)=TRUE,"Error",IF(INT('Data for submission '!G46)<>'Data for submission '!G46,"Error",IF('Data for submission '!G46<0,"Error","OK"))))) -> OK | H47: =IF('Data for submission '!H46="","No Data",IF(LEN('Data for submission '!H46)>255,"Error you have exceeded the character limit",IF(ISTEXT('Data for submission '!H46)=TRUE,"Error",IF(INT('Data for submission '!H46)<>'Data for submission '!H46,"Error",IF('Data for submission '!H46<0,"Error","OK"))))) -> OK | I47: =IF('Data for submission '!I46="","No Data",IF(LEN('Data for submission '!I46)>255,"Error you have exceeded the character limit",IF(ISTEXT('Data for submission '!I46)=TRUE,"Error",IF(INT('Data for submission '!I46)<>'Data for submission '!I46,"Error",IF('Data for submission '!I46<0,"Error","OK"))))) -> OK | J47: =IF('Data for submission '!J46="","No Data",IF(LEN('Data for submission '!J46)>255,"Error you have exceeded the character limit",IF(ISTEXT('Data for submission '!J46)=TRUE,"Error",IF(INT('Data for submission '!J46)<>'Data for submission '!J46,"Error",IF('Data for submission '!J46<0,"Error","OK"))))) -> OK | K47: =IF('Data for submission '!K46="","No Data",IF(LEN('Data for submission '!K46)>255,"Error you have exceeded the character limit",IF(ISTEXT('Data for submission '!K46)=TRUE,"Error",IF(INT('Data for submission '!K46)<>'Data for submission '!K46,"Error",IF('Data for submission '!K46<0,"Error","OK"))))) -> OK | L47: =IF('Data for submission '!L46="","",IF(LEN('Data for submission '!L46)>255,"Error you have exceeded the character limit","")) ->  | M47: VSM | N47: Clinical
D48: Of which Medical & Dental
C49: 29 | D49: Consultants | E49: Headcount | F49: =IF('Data for submission '!F48="","No Data",IF(LEN('Data for submission '!F48)>255,"Error you have exceeded the character limit",IF(ISTEXT('Data for submission '!F48)=TRUE,"Error",IF(INT('Data for submission '!F48)<>'Data for submission '!F48,"Error",IF('Data for submission '!F48<0,"Error","OK"))))) -> OK | G49: =IF('Data for submission '!G48="","No Data",IF(LEN('Data for submission '!G48)>255,"Error you have exceeded the character limit",IF(ISTEXT('Data for submission '!G48)=TRUE,"Error",IF(INT('Data for submission '!G48)<>'Data for submission '!G48,"Error",IF('Data for submission '!G48<0,"Error","OK"))))) -> OK | H49: =IF('Data for submission '!H48="","No Data",IF(LEN('Data for submission '!H48)>255,"Error you have exceeded the character limit",IF(ISTEXT('Data for submission '!H48)=TRUE,"Error",IF(INT('Data for submission '!H48)<>'Data for submission '!H48,"Error",IF('Data for submission '!H48<0,"Error","OK"))))) -> OK | I49: =IF('Data for submission '!I48="","No Data",IF(LEN('Data for submission '!I48)>255,"Error you have exceeded the character limit",IF(ISTEXT('Data for submission '!I48)=TRUE,"Error",IF(INT('Data for submission '!I48)<>'Data for submission '!I48,"Error",IF('Data for submission '!I48<0,"Error","OK"))))) -> OK | J49: =IF('Data for submission '!J48="","No Data",IF(LEN('Data for submission '!J48)>255,"Error you have exceeded the character limit",IF(ISTEXT('Data for submission '!J48)=TRUE,"Error",IF(INT('Data for submission '!J48)<>'Data for submission '!J48,"Error",IF('Data for submission '!J48<0,"Error","OK"))))) -> OK | K49: =IF('Data for submission '!K48="","No Data",IF(LEN('Data for submission '!K48)>255,"Error you have exceeded the character limit",IF(ISTEXT('Data for submission '!K48)=TRUE,"Error",IF(INT('Data for submission '!K48)<>'Data for submission '!K48,"Error",IF('Data for submission '!K48<0,"Error","OK"))))) -> OK | L49: =IF('Data for submission '!L48="","",IF(LEN('Data for submission '!L48)>255,"Error you have exceeded the character limit","")) ->  | M49: Medical & Dental Consultant | N49: Clinical
C50: 30 | D50: of which Senior medical manager | E50: Headcount | L50: =IF('Data for submission '!L49="","",IF(LEN('Data for submission '!L49)>255,"Error you have exceeded the character limit","")) -> 
C51: 31 | D51: Non-consultant career grade | E51: Headcount | F51: =IF('Data for submission '!F50="","No Data",IF(LEN('Data for submission '!F50)>255,"Error you have exceeded the character limit",IF(ISTEXT('Data for submission '!F50)=TRUE,"Error",IF(INT('Data for submission '!F50)<>'Data for submission '!F50,"Error",IF('Data for submission '!F50<0,"Error","OK"))))) -> OK | G51: =IF('Data for submission '!G50="","No Data",IF(LEN('Data for submission '!G50)>255,"Error you have exceeded the character limit",IF(ISTEXT('Data for submission '!G50)=TRUE,"Error",IF(INT('Data for submission '!G50)<>'Data for submission '!G50,"Error",IF('Data for submission '!G50<0,"Error","OK"))))) -> OK | H51: =IF('Data for submission '!H50="","No Data",IF(LEN('Data for submission '!H50)>255,"Error you have exceeded the character limit",IF(ISTEXT('Data for submission '!H50)=TRUE,"Error",IF(INT('Data for submission '!H50)<>'Data for submission '!H50,"Error",IF('Data for submission '!H50<0,"Error","OK"))))) -> OK | I51: =IF('Data for submission '!I50="","No Data",IF(LEN('Data for submission '!I50)>255,"Error you have exceeded the character limit",IF(ISTEXT('Data for submission '!I50)=TRUE,"Error",IF(INT('Data for submission '!I50)<>'Data for submission '!I50,"Error",IF('Data for submission '!I50<0,"Error","OK"))))) -> OK | J51: =IF('Data for submission '!J50="","No Data",IF(LEN('Data for submission '!J50)>255,"Error you have exceeded the character limit",IF(ISTEXT('Data for submission '!J50)=TRUE,"Error",IF(INT('Data for submission '!J50)<>'Data for submission '!J50,"Error",IF('Data for submission '!J50<0,"Error","OK"))))) -> OK | K51: =IF('Data for submission '!K50="","No Data",IF(LEN('Data for submission '!K50)>255,"Error you have exceeded the character limit",IF(ISTEXT('Data for submission '!K50)=TRUE,"Error",IF(INT('Data for submission '!K50)<>'Data for submission '!K50,"Error",IF('Data for submission '!K50<0,"Error","OK"))))) -> OK | L51: =IF('Data for submission '!L50="","",IF(LEN('Data for submission '!L50)>255,"Error you have exceeded the character limit","")) ->  | M51: Medical & Dental Non-consultant career grade | N51: Clinical
C52: 32 | D52: Trainee grades | E52: Headcount | F52: =IF('Data for submission '!F51="","No Data",IF(LEN('Data for submission '!F51)>255,"Error you have exceeded the character limit",IF(ISTEXT('Data for submission '!F51)=TRUE,"Error",IF(INT('Data for submission '!F51)<>'Data for submission '!F51,"Error",IF('Data for submission '!F51<0,"Error","OK"))))) -> OK | G52: =IF('Data for submission '!G51="","No Data",IF(LEN('Data for submission '!G51)>255,"Error you have exceeded the character limit",IF(ISTEXT('Data for submission '!G51)=TRUE,"Error",IF(INT('Data for submission '!G51)<>'Data for submission '!G51,"Error",IF('Data for submission '!G51<0,"Error","OK"))))) -> OK | H52: =IF('Data for submission '!H51="","No Data",IF(LEN('Data for submission '!H51)>255,"Error you have exceeded the character limit",IF(ISTEXT('Data for submission '!H51)=TRUE,"Error",IF(INT('Data for submission '!H51)<>'Data for submission '!H51,"Error",IF('Data for submission '!H51<0,"Error","OK"))))) -> OK | I52: =IF('Data for submission '!I51="","No Data",IF(LEN('Data for submission '!I51)>255,"Error you have exceeded the character limit",IF(ISTEXT('Data for submission '!I51)=TRUE,"Error",IF(INT('Data for submission '!I51)<>'Data for submission '!I51,"Error",IF('Data for submission '!I51<0,"Error","OK"))))) -> OK | J52: =IF('Data for submission '!J51="","No Data",IF(LEN('Data for submission '!J51)>255,"Error you have exceeded the character limit",IF(ISTEXT('Data for submission '!J51)=TRUE,"Error",IF(INT('Data for submission '!J51)<>'Data for submission '!J51,"Error",IF('Data for submission '!J51<0,"Error","OK"))))) -> OK | K52: =IF('Data for submission '!K51="","No Data",IF(LEN('Data for submission '!K51)>255,"Error you have exceeded the character limit",IF(ISTEXT('Data for submission '!K51)=TRUE,"Error",IF(INT('Data for submission '!K51)<>'Data for submission '!K51,"Error",IF('Data for submission '!K51<0,"Error","OK"))))) -> OK | L52: =IF('Data for submission '!L51="","",IF(LEN('Data for submission '!L51)>255,"Error you have exceeded the character limit","")) ->  | M52: Medical & Dental Trainee grades | N52: Clinical
C53: 33 | D53: Other | E53: Headcount | F53: =IF('Data for submission '!F52="","No Data",IF(LEN('Data for submission '!F52)>255,"Error you have exceeded the character limit",IF(ISTEXT('Data for submission '!F52)=TRUE,"Error",IF(INT('Data for submission '!F52)<>'Data for submission '!F52,"Error",IF('Data for submission '!F52<0,"Error","OK"))))) -> OK | G53: =IF('Data for submission '!G52="","No Data",IF(LEN('Data for submission '!G52)>255,"Error you have exceeded the character limit",IF(ISTEXT('Data for submission '!G52)=TRUE,"Error",IF(INT('Data for submission '!G52)<>'Data for submission '!G52,"Error",IF('Data for submission '!G52<0,"Error","OK"))))) -> OK | H53: =IF('Data for submission '!H52="","No Data",IF(LEN('Data for submission '!H52)>255,"Error you have exceeded the character limit",IF(ISTEXT('Data for submission '!H52)=TRUE,"Error",IF(INT('Data for submission '!H52)<>'Data for submission '!H52,"Error",IF('Data for submission '!H52<0,"Error","OK"))))) -> OK | I53: =IF('Data for submission '!I52="","No Data",IF(LEN('Data for submission '!I52)>255,"Error you have exceeded the character limit",IF(ISTEXT('Data for submission '!I52)=TRUE,"Error",IF(INT('Data for submission '!I52)<>'Data for submission '!I52,"Error",IF('Data for submission '!I52<0,"Error","OK"))))) -> OK | J53: =IF('Data for submission '!J52="","No Data",IF(LEN('Data for submission '!J52)>255,"Error you have exceeded the character limit",IF(ISTEXT('Data for submission '!J52)=TRUE,"Error",IF(INT('Data for submission '!J52)<>'Data for submission '!J52,"Error",IF('Data for submission '!J52<0,"Error","OK"))))) -> OK | K53: =IF('Data for submission '!K52="","No Data",IF(LEN('Data for submission '!K52)>255,"Error you have exceeded the character limit",IF(ISTEXT('Data for submission '!K52)=TRUE,"Error",IF(INT('Data for submission '!K52)<>'Data for submission '!K52,"Error",IF('Data for submission '!K52<0,"Error","OK"))))) -> OK | L53: =IF('Data for submission '!L52="","",IF(LEN('Data for submission '!L52)>255,"Error you have exceeded the character limit","")) ->  | M53: Medical & Dental Other | N53: Clinical
A54: 2 | B54: Relative likelihood of staff being appointed from shortlisting across all posts | C54: 34 | D54: Number of shortlisted applicants: | E54: Headcount | F54: =IF('Data for submission '!F53="","No Data",IF(INT('Data for submission '!F53)<>'Data for submission '!F53,"Error",IF('Data for submission '!F53<'Data for submission '!F54,"Error",IF('Data for submission '!F53<0,"Error",IF(ISTEXT('Data for submission '!F53)=TRUE,"Error","OK"))))) -> OK | G54: =IF('Data for submission '!G53="","No Data",IF(LEN('Data for submission '!G53)>255,"Error you have exceeded the character limit",IF(INT('Data for submission '!G53)<>'Data for submission '!G53,"Error",IF('Data for submission '!G53<'Data for submission '!G54,"Error",IF('Data for submission '!G53<0,"Error",IF(ISTEXT('Data for submission '!G53)=TRUE,"Error","OK")))))) -> OK | H54: =IF('Data for submission '!H53="","No Data",IF(LEN('Data for submission '!H53)>255,"Error you have exceeded the character limit",IF(INT('Data for submission '!H53)<>'Data for submission '!H53,"Error",IF('Data for submission '!H53<'Data for submission '!H54,"Error",IF('Data for submission '!H53<0,"Error",IF(ISTEXT('Data for submission '!H53)=TRUE,"Error","OK")))))) -> OK | I54: =IF('Data for submission '!I53="","No Data",IF(LEN('Data for submission '!I53)>255,"Error you have exceeded the character limit",IF(INT('Data for submission '!I53)<>'Data for submission '!I53,"Error",IF('Data for submission '!I53<'Data for submission '!I54,"Error",IF('Data for submission '!I53<0,"Error",IF(ISTEXT('Data for submission '!I53)=TRUE,"Error","OK")))))) -> OK | J54: =IF('Data for submission '!J53="","No Data",IF(LEN('Data for submission '!J53)>255,"Error you have exceeded the character limit",IF(INT('Data for submission '!J53)<>'Data for submission '!J53,"Error",IF('Data for submission '!J53<'Data for submission '!J54,"Error",IF('Data for submission '!J53<0,"Error",IF(ISTEXT('Data for submission '!J53)=TRUE,"Error","OK")))))) -> OK | K54: =IF('Data for submission '!K53="","No Data",IF(LEN('Data for submission '!K53)>255,"Error you have exceeded the character limit",IF(INT('Data for submission '!K53)<>'Data for submission '!K53,"Error",IF('Data for submission '!K53<'Data for submission '!K54,"Error",IF('Data for submission '!K53<0,"Error",IF(ISTEXT('Data for submission '!K53)=TRUE,"Error","OK")))))) -> OK | L54: =IF('Data for submission '!L53="","",IF(LEN('Data for submission '!L53)>255,"Error you have exceeded the character limit","")) ->  | Q54: 2.552292524 | R54: 0.5559166561
C55: 35 | D55: Number appointed from shortlisting: | E55: Headcount | F55: =IF('Data for submission '!F54="","No Data",IF(INT('Data for submission '!F54)<>'Data for submission '!F54,"Error",IF('Data for submission '!F54>'Data for submission '!F53,"Error",IF('Data for submission '!F54<0,"Error",IF(ISTEXT('Data for submission '!F54)=TRUE,"Error","OK"))))) -> OK | G55: =IF('Data for submission '!G54="","No Data",IF(LEN('Data for submission '!G54)>255,"Error you have exceeded the character limit",IF(INT('Data for submission '!G54)<>'Data for submission '!G54,"Error",IF('Data for submission '!G54>'Data for submission '!G53,"Error",IF('Data for submission '!G54<0,"Error",IF(ISTEXT('Data for submission '!G54)=TRUE,"Error","OK")))))) -> OK | H55: =IF('Data for submission '!H54="","No Data",IF(LEN('Data for submission '!H54)>255,"Error you have exceeded the character limit",IF(INT('Data for submission '!H54)<>'Data for submission '!H54,"Error",IF('Data for submission '!H54>'Data for submission '!H53,"Error",IF('Data for submission '!H54<0,"Error",IF(ISTEXT('Data for submission '!H54)=TRUE,"Error","OK")))))) -> OK | I55: =IF('Data for submission '!I54="","No Data",IF(LEN('Data for submission '!I54)>255,"Error you have exceeded the character limit",IF(INT('Data for submission '!I54)<>'Data for submission '!I54,"Error",IF('Data for submission '!I54>'Data for submission '!I53,"Error",IF('Data for submission '!I54<0,"Error",IF(ISTEXT('Data for submission '!I54)=TRUE,"Error","OK")))))) -> OK | J55: =IF('Data for submission '!J54="","No Data",IF(LEN('Data for submission '!J54)>255,"Error you have exceeded the character limit",IF(INT('Data for submission '!J54)<>'Data for submission '!J54,"Error",IF('Data for submission '!J54>'Data for submission '!J53,"Error",IF('Data for submission '!J54<0,"Error",IF(ISTEXT('Data for submission '!J54)=TRUE,"Error","OK")))))) -> OK | K55: =IF('Data for submission '!K54="","No Data",IF(LEN('Data for submission '!K54)>255,"Error you have exceeded the character limit",IF(INT('Data for submission '!K54)<>'Data for submission '!K54,"Error",IF('Data for submission '!K54>'Data for submission '!K53,"Error",IF('Data for submission '!K54<0,"Error",IF(ISTEXT('Data for submission '!K54)=TRUE,"Error","OK")))))) -> OK | L55: =IF('Data for submission '!L54="","",IF(LEN('Data for submission '!L54)>255,"Error you have exceeded the character limit","")) -> 
C56: 36 | D56: Relative likelihood of shortlisting/appointed: | E56: Auto calculated | F56: =IFERROR(F55/F54,"") ->  | I56: =IFERROR(I55/I54,"") ->  | J56: =IFERROR(J55/J54,"") -> 
C57: 37 | D57: Relative likelihood of White staff being appointed from shortlisting compared to BME staff: | E57: Auto calculated | I57: =IFERROR(I56/J56,"") -> 
A58: 3 | B58: Relative likelihood of staff entering the formal disciplinary process, as measured by entry into a formal disciplinary investigation Note: This indicator will be based on data from a two year rolling average of the current year and the previous year | C58: 38 | D58: Number of staff in workforce: | E58: Headcount | F58: =IF('Data for submission '!F57="","No Data",IF(LEN('Data for submission '!F57)>255,"Error you have exceeded the character limit",IF(INT('Data for submission '!F57)<>'Data for submission '!F57,"Error",IF('Data for submission '!F57<'Data for submission '!F58,"Error",IF('Data for submission '!F57<0,"Error",IF(ISTEXT('Data for submission '!F57)=TRUE,"Error","OK")))))) -> OK | G58: =IF('Data for submission '!G57="","No Data",IF(LEN('Data for submission '!G57)>255,"Error you have exceeded the character limit",IF(INT('Data for submission '!G57)<>'Data for submission '!G57,"Error",IF('Data for submission '!G57<'Data for submission '!G58,"Error",IF('Data for submission '!G57<0,"Error",IF(ISTEXT('Data for submission '!G57)=TRUE,"Error","OK")))))) -> OK | H58: =IF('Data for submission '!H57="","No Data",IF(LEN('Data for submission '!H57)>255,"Error you have exceeded the character limit",IF(INT('Data for submission '!H57)<>'Data for submission '!H57,"Error",IF('Data for submission '!H57<'Data for submission '!H58,"Error",IF('Data for submission '!H57<0,"Error",IF(ISTEXT('Data for submission '!H57)=TRUE,"Error","OK")))))) -> OK | I58: =IF('Data for submission '!I57="","No Data",IF(LEN('Data for submission '!I57)>255,"Error you have exceeded the character limit",IF(INT('Data for submission '!I57)<>'Data for submission '!I57,"Error",IF('Data for submission '!I57<'Data for submission '!I58,"Error",IF('Data for submission '!I57<0,"Error",IF(ISTEXT('Data for submission '!I57)=TRUE,"Error","OK")))))) -> OK | J58: =IF('Data for submission '!J57="","No Data",IF(LEN('Data for submission '!J57)>255,"Error you have exceeded the character limit",IF(INT('Data for submission '!J57)<>'Data for submission '!J57,"Error",IF('Data for submission '!J57<'Data for submission '!J58,"Error",IF('Data for submission '!J57<0,"Error",IF(ISTEXT('Data for submission '!J57)=TRUE,"Error","OK")))))) -> OK | K58: =IF('Data for submission '!K57="","No Data",IF(LEN('Data for submission '!K57)>255,"Error you have exceeded the character limit",IF(INT('Data for submission '!K57)<>'Data for submission '!K57,"Error",IF('Data for submission '!K57<'Data for submission '!K58,"Error",IF('Data for submission '!K57<0,"Error",IF(ISTEXT('Data for submission '!K57)=TRUE,"Error","OK")))))) -> OK | L58: =IF('Data for submission '!L57="","",IF(LEN('Data for submission '!L57)>255,"Error you have exceeded the character limit","")) ->  | Q58: 4.315868004 | R58: 0
C59: 39 | D59: Number of staff entering the formal disciplinary process: | E59: Headcount | F59: =IF('Data for submission '!F58="","No Data",IF(LEN('Data for submission '!F58)>255,"Error you have exceeded the character limit",IF('Data for submission '!F58>'Data for submission '!F57,"Error",IF('Data for submission '!F58<0,"Error",IF(ISTEXT('Data for submission '!F58)=TRUE,"Error","OK"))))) -> OK | G59: =IF('Data for submission '!G58="","No Data",IF(LEN('Data for submission '!G58)>255,"Error you have exceeded the character limit",IF('Data for submission '!G58>'Data for submission '!G57,"Error",IF('Data for submission '!G58<0,"Error",IF(ISTEXT('Data for submission '!G58)=TRUE,"Error","OK"))))) -> OK | H59: =IF('Data for submission '!H58="","No Data",IF(LEN('Data for submission '!H58)>255,"Error you have exceeded the character limit",IF('Data for submission '!H58>'Data for submission '!H57,"Error",IF('Data for submission '!H58<0,"Error",IF(ISTEXT('Data for submission '!H58)=TRUE,"Error","OK"))))) -> OK | I59: =IF('Data for submission '!I58="","No Data",IF(LEN('Data for submission '!I58)>255,"Error you have exceeded the character limit",IF('Data for submission '!I58>'Data for submission '!I57,"Error",IF('Data for submission '!I58<0,"Error",IF(ISTEXT('Data for submission '!I58)=TRUE,"Error","OK"))))) -> OK | J59: =IF('Data for submission '!J58="","No Data",IF(LEN('Data for submission '!J58)>255,"Error you have exceeded the character limit",IF('Data for submission '!J58>'Data for submission '!J57,"Error",IF('Data for submission '!J58<0,"Error",IF(ISTEXT('Data for submission '!J58)=TRUE,"Error","OK"))))) -> OK | K59: =IF('Data for submission '!K58="","No Data",IF(LEN('Data for submission '!K58)>255,"Error you have exceeded the character limit",IF('Data for submission '!K58>'Data for submission '!K57,"Error",IF('Data for submission '!K58<0,"Error",IF(ISTEXT('Data for submission '!K58)=TRUE,"Error","OK"))))) -> OK | L59: =IF('Data for submission '!L58="","",IF(LEN('Data for submission '!L58)>255,"Error you have exceeded the character limit","")) -> 
C60: 40 | D60: Likelihood of staff entering the formal disciplinary process: | E60: Auto calculated
C61: 41 | D61: Relative likelihood of BME staff entering the formal disciplinary process compared to White staff: | E61: Auto calculated | J61: =IFERROR(J60/I60,"") -> 
A62: 4 | B62: Relative likelihood of staff accessing non-mandatory training and CPD | C62: 42 | D62: Number of staff in workforce: | E62: Headcount | F62: =IF('Data for submission '!F61="","No Data",IF(LEN('Data for submission '!F61)>255,"Error you have exceeded the character limit",IF(INT('Data for submission '!F61)<>'Data for submission '!F61,"Error",IF('Data for submission '!F61<'Data for submission '!F62,"Error",IF('Data for submission '!F61<0,"Error",IF(ISTEXT('Data for submission '!F61)=TRUE,"Error","OK")))))) -> OK | G62: =IF('Data for submission '!G61="","No Data",IF(LEN('Data for submission '!G61)>255,"Error you have exceeded the character limit",IF(INT('Data for submission '!G61)<>'Data for submission '!G61,"Error",IF('Data for submission '!G61<'Data for submission '!G62,"Error",IF('Data for submission '!G61<0,"Error",IF(ISTEXT('Data for submission '!G61)=TRUE,"Error","OK")))))) -> OK | H62: =IF('Data for submission '!H61="","No Data",IF(LEN('Data for submission '!H61)>255,"Error you have exceeded the character limit",IF(INT('Data for submission '!H61)<>'Data for submission '!H61,"Error",IF('Data for submission '!H61<'Data for submission '!H62,"Error",IF('Data for submission '!H61<0,"Error",IF(ISTEXT('Data for submission '!H61)=TRUE,"Error","OK")))))) -> OK | I62: =IF('Data for submission '!I61="","No Data",IF(LEN('Data for submission '!I61)>255,"Error you have exceeded the character limit",IF(INT('Data for submission '!I61)<>'Data for submission '!I61,"Error",IF('Data for submission '!I61<'Data for submission '!I62,"Error",IF('Data for submission '!I61<0,"Error",IF(ISTEXT('Data for submission '!I61)=TRUE,"Error","OK")))))) -> OK | J62: =IF('Data for submission '!J61="","No Data",IF(LEN('Data for submission '!J61)>255,"Error you have exceeded the character limit",IF(INT('Data for submission '!J61)<>'Data for submission '!J61,"Error",IF('Data for submission '!J61<'Data for submission '!J62,"Error",IF('Data for submission '!J61<0,"Error",IF(ISTEXT('Data for submission '!J61)=TRUE,"Error","OK")))))) -> OK | K62: =IF('Data for submission '!K61="","No Data",IF(LEN('Data for submission '!K61)>255,"Error you have exceeded the character limit",IF(INT('Data for submission '!K61)<>'Data for submission '!K61,"Error",IF('Data for submission '!K61<'Data for submission '!K62,"Error",IF('Data for submission '!K61<0,"Error",IF(ISTEXT('Data for submission '!K61)=TRUE,"Error","OK")))))) -> OK | L62: =IF('Data for submission '!L61="","",IF(LEN('Data for submission '!L61)>255,"Error you have exceeded the character limit","")) ->  | Q62: 2.052158313 | R62: 0.1029898185
C63: 43 | D63: Number of staff accessing non-mandatory training and CPD: | E63: Headcount | F63: =IF('Data for submission '!F62="","No Data",IF(LEN('Data for submission '!F62)>255,"Error you have exceeded the character limit",IF(INT('Data for submission '!F62)<>'Data for submission '!F62,"Error",IF('Data for submission '!F62>'Data for submission '!F61,"Error",IF('Data for submission '!F62<0,"Error",IF(ISTEXT('Data for submission '!F62)=TRUE,"Error","OK")))))) -> OK | G63: =IF('Data for submission '!G62="","No Data",IF(LEN('Data for submission '!G62)>255,"Error you have exceeded the character limit",IF(INT('Data for submission '!G62)<>'Data for submission '!G62,"Error",IF('Data for submission '!G62>'Data for submission '!G61,"Error",IF('Data for submission '!G62<0,"Error",IF(ISTEXT('Data for submission '!G62)=TRUE,"Error","OK")))))) -> OK | H63: =IF('Data for submission '!H62="","No Data",IF(LEN('Data for submission '!H62)>255,"Error you have exceeded the character limit",IF(INT('Data for submission '!H62)<>'Data for submission '!H62,"Error",IF('Data for submission '!H62>'Data for submission '!H61,"Error",IF('Data for submission '!H62<0,"Error",IF(ISTEXT('Data for submission '!H62)=TRUE,"Error","OK")))))) -> OK | I63: =IF('Data for submission '!I62="","No Data",IF(LEN('Data for submission '!I62)>255,"Error you have exceeded the character limit",IF(INT('Data for submission '!I62)<>'Data for submission '!I62,"Error",IF('Data for submission '!I62>'Data for submission '!I61,"Error",IF('Data for submission '!I62<0,"Error",IF(ISTEXT('Data for submission '!I62)=TRUE,"Error","OK")))))) -> OK | J63: =IF('Data for submission '!J62="","No Data",IF(LEN('Data for submission '!J62)>255,"Error you have exceeded the character limit",IF(INT('Data for submission '!J62)<>'Data for submission '!J62,"Error",IF('Data for submission '!J62>'Data for submission '!J61,"Error",IF('Data for submission '!J62<0,"Error",IF(ISTEXT('Data for submission '!J62)=TRUE,"Error","OK")))))) -> OK | K63: =IF('Data for submission '!K62="","No Data",IF(LEN('Data for submission '!K62)>255,"Error you have exceeded the character limit",IF(INT('Data for submission '!K62)<>'Data for submission '!K62,"Error",IF('Data for submission '!K62>'Data for submission '!K61,"Error",IF('Data for submission '!K62<0,"Error",IF(ISTEXT('Data for submission '!K62)=TRUE,"Error","OK")))))) -> OK | L63: =IF('Data for submission '!L62="","",IF(LEN('Data for submission '!L62)>255,"Error you have exceeded the character limit","")) -> 
C64: 44 | D64: Likelihood of staff accessing non-mandatory training and CPD: | E64: Auto calculated
C65: 45 | D65: Relative likelihood of White staff accessing non-mandatory training and CPD compared to BME staff: | E65: Auto calculated
A66: 9 | B66: Percentage difference between the organisations’ Board voting membership and its overall workforce Note: Only voting members of the Board should be included when considering this indicator | C66: 46 | D66: Total Board members | E66: Headcount | F66: =IF('Data for submission '!F65="","No Data",IF(LEN('Data for submission '!F65)>255,"Error you have exceeded the character limit",IF(INT('Data for submission '!F65)<>'Data for submission '!F65,"Error",IF('Data for submission '!F65<'Data for submission '!F66,"Error",IF('Data for submission '!F65<0,"Error",IF(ISTEXT('Data for submission '!F65)=TRUE,"Error","OK")))))) -> OK | G66: =IF('Data for submission '!G65="","No Data",IF(LEN('Data for submission '!G65)>255,"Error you have exceeded the character limit",IF(INT('Data for submission '!G65)<>'Data for submission '!G65,"Error",IF('Data for submission '!G65<'Data for submission '!G66,"Error",IF('Data for submission '!G65<0,"Error",IF(ISTEXT('Data for submission '!G65)=TRUE,"Error","OK")))))) -> OK | H66: =IF('Data for submission '!H65="","No Data",IF(LEN('Data for submission '!H65)>255,"Error you have exceeded the character limit",IF(INT('Data for submission '!H65)<>'Data for submission '!H65,"Error",IF('Data for submission '!H65<'Data for submission '!H66,"Error",IF('Data for submission '!H65<0,"Error",IF(ISTEXT('Data for submission '!H65)=TRUE,"Error","OK")))))) -> OK | I66: =IF('Data for submission '!I65="","No Data",IF(LEN('Data for submission '!I65)>255,"Error you have exceeded the character limit",IF(INT('Data for submission '!I65)<>'Data for submission '!I65,"Error",IF('Data for submission '!I65<'Data for submission '!I66,"Error",IF('Data for submission '!I65<0,"Error",IF(ISTEXT('Data for submission '!I65)=TRUE,"Error","OK")))))) -> OK | J66: =IF('Data for submission '!J65="","No Data",IF(LEN('Data for submission '!J65)>255,"Error you have exceeded the character limit",IF(INT('Data for submission '!J65)<>'Data for submission '!J65,"Error",IF('Data for submission '!J65<'Data for submission '!J66,"Error",IF('Data for submission '!J65<0,"Error",IF(ISTEXT('Data for submission '!J65)=TRUE,"Error","OK")))))) -> OK | K66: =IF('Data for submission '!K65="","No Data",IF(LEN('Data for submission '!K65)>255,"Error you have exceeded the character limit",IF(INT('Data for submission '!K65)<>'Data for submission '!K65,"Error",IF('Data for submission '!K65<'Data for submission '!K66,"Error",IF('Data for submission '!K65<0,"Error",IF(ISTEXT('Data for submission '!K65)=TRUE,"Error","OK")))))) -> OK | L66: =IF('Data for submission '!L65="","",IF(LEN('Data for submission '!L65)>255,"Error you have exceeded the character limit","")) -> 
C67: 47 | D67: of which: Voting Board members | E67: Headcount | F67: =IF('Data for submission '!F66="","No Data",IF(LEN('Data for submission '!F66)>255,"Error you have exceeded the character limit",IF(INT('Data for submission '!F66)<>'Data for submission '!F66,"Error",IF('Data for submission '!F66>'Data for submission '!F65,"Error",IF('Data for submission '!F66<0,"Error",IF(ISTEXT('Data for submission '!F66)=TRUE,"Error","OK")))))) -> OK | G67: =IF('Data for submission '!G66="","No Data",IF(LEN('Data for submission '!G66)>255,"Error you have exceeded the character limit",IF(INT('Data for submission '!G66)<>'Data for submission '!G66,"Error",IF('Data for submission '!G66>'Data for submission '!G65,"Error",IF('Data for submission '!G66<0,"Error",IF(ISTEXT('Data for submission '!G66)=TRUE,"Error","OK")))))) -> OK | H67: =IF('Data for submission '!H66="","No Data",IF(LEN('Data for submission '!H66)>255,"Error you have exceeded the character limit",IF(INT('Data for submission '!H66)<>'Data for submission '!H66,"Error",IF('Data for submission '!H66>'Data for submission '!H65,"Error",IF('Data for submission '!H66<0,"Error",IF(ISTEXT('Data for submission '!H66)=TRUE,"Error","OK")))))) -> OK | I67: =IF('Data for submission '!I66="","No Data",IF(LEN('Data for submission '!I66)>255,"Error you have exceeded the character limit",IF(INT('Data for submission '!I66)<>'Data for submission '!I66,"Error",IF('Data for submission '!I66>'Data for submission '!I65,"Error",IF('Data for submission '!I66<0,"Error",IF(ISTEXT('Data for submission '!I66)=TRUE,"Error","OK")))))) -> OK | J67: =IF('Data for submission '!J66="","No Data",IF(LEN('Data for submission '!J66)>255,"Error you have exceeded the character limit",IF(INT('Data for submission '!J66)<>'Data for submission '!J66,"Error",IF('Data for submission '!J66>'Data for submission '!J65,"Error",IF('Data for submission '!J66<0,"Error",IF(ISTEXT('Data for submission '!J66)=TRUE,"Error","OK")))))) -> OK | K67: =IF('Data for submission '!K66="","No Data",IF(LEN('Data for submission '!K66)>255,"Error you have exceeded the character limit",IF(INT('Data for submission '!K66)<>'Data for submission '!K66,"Error",IF('Data for submission '!K66>'Data for submission '!K65,"Error",IF('Data for submission '!K66<0,"Error",IF(ISTEXT('Data for submission '!K66)=TRUE,"Error","OK")))))) -> OK | L67: =IF('Data for submission '!L66="","",IF(LEN('Data for submission '!L66)>255,"Error you have exceeded the character limit","")) -> 
C68: 48 | D68: : Non Voting Board members | E68: Autocalculated | F68: =IF('Data for submission '!F67="Error","Error","") ->  | G68: =IF('Data for submission '!G67="Error","Error","") ->  | H68: =IF('Data for submission '!H67="Error","Error","") ->  | I68: =IF('Data for submission '!I67="Error","Error","") ->  | J68: =IF('Data for submission '!J67="Error","Error","") ->  | K68: =IF('Data for submission '!K67="Error","Error","") ->  | L68: =IF('Data for submission '!L67="","",IF(LEN('Data for submission '!L67)>255,"Error you have exceeded the character limit","")) -> 
C69: 49 | D69: Total Board members | E69: Headcount | F69: =IF('Data for submission '!F68="","No Data",IF('Data for submission '!F68<'Data for submission '!F69,"Error",IF('Data for submission '!F68<0,"Error",IF(ISTEXT('Data for submission '!F68)=TRUE,"Error","OK")))) -> OK | G69: =IF('Data for submission '!G68="","No Data",IF('Data for submission '!G68<'Data for submission '!G69,"Error",IF('Data for submission '!G68<0,"Error",IF(ISTEXT('Data for submission '!G68)=TRUE,"Error","OK")))) -> OK | H69: =IF('Data for submission '!H68="","No Data",IF('Data for submission '!H68<'Data for submission '!H69,"Error",IF('Data for submission '!H68<0,"Error",IF(ISTEXT('Data for submission '!H68)=TRUE,"Error","OK")))) -> OK | I69: =IF('Data for submission '!I68="","No Data",IF('Data for submission '!I68<'Data for submission '!I69,"Error",IF('Data for submission '!I68<0,"Error",IF(ISTEXT('Data for submission '!I68)=TRUE,"Error","OK")))) -> OK | J69: =IF('Data for submission '!J68="","No Data",IF('Data for submission '!J68<'Data for submission '!J69,"Error",IF('Data for submission '!J68<0,"Error",IF(ISTEXT('Data for submission '!J68)=TRUE,"Error","OK")))) -> OK | K69: =IF('Data for submission '!K68="","No Data",IF('Data for submission '!K68<'Data for submission '!K69,"Error",IF('Data for submission '!K68<0,"Error",IF(ISTEXT('Data for submission '!K68)=TRUE,"Error","OK")))) -> OK | L69: =IF('Data for submission '!L68="","",IF(LEN('Data for submission '!L68)>255,"Error you have exceeded the character limit","")) -> 
C70: 50 | D70: of which: Exec Board members | E70: Headcount | F70: =IF('Data for submission '!F69="","No Data",IF(LEN('Data for submission '!F69)>255,"Error you have exceeded the character limit",IF(INT('Data for submission '!F69)<>'Data for submission '!F69,"Error",IF('Data for submission '!F69<'Data for submission '!F70,"Error",IF('Data for submission '!F69<0,"Error",IF(ISTEXT('Data for submission '!F69)=TRUE,"Error","OK")))))) -> OK | G70: =IF('Data for submission '!G69="","No Data",IF(LEN('Data for submission '!G69)>255,"Error you have exceeded the character limit",IF(INT('Data for submission '!G69)<>'Data for submission '!G69,"Error",IF('Data for submission '!G69<'Data for submission '!G70,"Error",IF('Data for submission '!G69<0,"Error",IF(ISTEXT('Data for submission '!G69)=TRUE,"Error","OK")))))) -> OK | H70: =IF('Data for submission '!H69="","No Data",IF(LEN('Data for submission '!H69)>255,"Error you have exceeded the character limit",IF(INT('Data for submission '!H69)<>'Data for submission '!H69,"Error",IF('Data for submission '!H69<'Data for submission '!H70,"Error",IF('Data for submission '!H69<0,"Error",IF(ISTEXT('Data for submission '!H69)=TRUE,"Error","OK")))))) -> OK | I70: =IF('Data for submission '!I69="","No Data",IF(LEN('Data for submission '!I69)>255,"Error you have exceeded the character limit",IF(INT('Data for submission '!I69)<>'Data for submission '!I69,"Error",IF('Data for submission '!I69<'Data for submission '!I70,"Error",IF('Data for submission '!I69<0,"Error",IF(ISTEXT('Data for submission '!I69)=TRUE,"Error","OK")))))) -> OK | J70: =IF('Data for submission '!J69="","No Data",IF(LEN('Data for submission '!J69)>255,"Error you have exceeded the character limit",IF(INT('Data for submission '!J69)<>'Data for submission '!J69,"Error",IF('Data for submission '!J69<'Data for submission '!J70,"Error",IF('Data for submission '!J69<0,"Error",IF(ISTEXT('Data for submission '!J69)=TRUE,"Error","OK")))))) -> OK | K70: =IF('Data for submission '!K69="","No Data",IF(LEN('Data for submission '!K69)>255,"Error you have exceeded the character limit",IF(INT('Data for submission '!K69)<>'Data for submission '!K69,"Error",IF('Data for submission '!K69<'Data for submission '!K70,"Error",IF('Data for submission '!K69<0,"Error",IF(ISTEXT('Data for submission '!K69)=TRUE,"Error","OK")))))) -> OK | L70: =IF('Data for submission '!L69="","",IF(LEN('Data for submission '!L69)>255,"Error you have exceeded the character limit","")) -> 
C71: 51 | D71: : Non Executive Board members | E71: Autocalculated | F71: =IF('Data for submission '!F70="Error","Error","") ->  | G71: =IF('Data for submission '!G70="Error","Error","") ->  | H71: =IF('Data for submission '!H70="Error","Error","") ->  | I71: =IF('Data for submission '!I70="Error","Error","") ->  | J71: =IF('Data for submission '!J70="Error","Error","") ->  | K71: =IF('Data for submission '!K70="Error","Error","") ->  | L71: =IF('Data for submission '!L70="","",IF(LEN('Data for submission '!L70)>255,"Error you have exceeded the character limit","")) -> 
C72: 52 | D72: Number of staff in overall workforce | E72: Headcount | F72: =F58 -> OK | G72: =G58 -> OK | H72: OK | I72: OK | J72: OK | K72: OK | L72: =IF('Data for submission '!L71="","",IF(LEN('Data for submission '!L71)>255,"Error you have exceeded the character limit","")) -> 
C73: 53 | D73: Total Board members - % by Ethnicity | E73: Auto calculated | F73: =IFERROR(F66/($F$66+$G$66+$H$66),"") ->  | G73: =IFERROR(G66/($F$66+$G$66+$H$66),"") ->  | H73: =IFERROR(H66/($F$66+$G$66+$H$66),"") ->  | I73: =IFERROR(I66/(I66+J66+K66),"") ->  | J73: =IFERROR(J66/(I66+J66+K66),"") ->  | K73: =IFERROR(K66/(I66+J66+K66),"") -> 
C74: 54 | D74: Voting Board Member - % by Ethnicity | E74: Auto calculated | F74: =IFERROR(F67/($F$67+$G$67+$H$67),"") ->  | G74: =IFERROR(G67/($F$67+$G$67+$H$67),"") ->  | H74: =IFERROR(H67/($F$67+$G$67+$H$67),"") ->  | I74: =IFERROR(I67/(I67+J67+K67),"") ->  | J74: =IFERROR(J67/(I67+J67+K67),"") ->  | K74: =IFERROR(K67/(I67+J67+K67),"") -> 
C75: 55 | D75: Non Voting Board Member - % by Ethnicity | E75: Auto calculated | F75: =IFERROR(F68/($F$68+$G$68+$H$68),"") ->  | G75: =IFERROR(G68/($F$68+$G$68+$H$68),"") ->  | H75: =IFERROR(H68/($F$68+$G$68+$H$68),"") ->  | I75: =IFERROR(I68/(I68+J68+K68),"") ->  | J75: =IFERROR(J68/(I68+J68+K68),"") ->  | K75: =IFERROR(K68/(I68+J68+K68),"") -> 
C76: 56 | D76: Executive Board Member - % by Ethnicity | E76: Auto calculated | F76: =IFERROR(F70/($F$70+$G$70+$H$70),"") ->  | G76: =IFERROR(G70/($F$70+$G$70+$H$70),"") ->  | H76: =IFERROR(H70/($F$70+$G$70+$H$70),"") ->  | I76: =IFERROR(I70/(I70+J70+K70),"") ->  | J76: =IFERROR(J70/(I70+J70+K70),"") ->  | K76: =IFERROR(K70/(I70+J70+K70),"") -> 
C77: 57 | D77: Non Executive Board Member - % by Ethnicity | E77: Auto calculated | F77: =IFERROR(F71/($F$71+$G$71+$H$71),"") ->  | G77: =IFERROR(G71/($F$71+$G$71+$H$71),"") ->  | H77: =IFERROR(H71/($F$71+$G$71+$H$71),"") ->  | I77: =IFERROR(I71/(I71+J71+K71),"") ->  | J77: =IFERROR(J71/(I71+J71+K71),"") ->  | K77: =IFERROR(K71/(I71+J71+K71),"") -> 
C78: 58 | D78: Overall workforce - % by Ethnicity | E78: Auto calculated | F78: =IFERROR(F72/($F$72+$G$72+$H$72),"") ->  | G78: =IFERROR(G72/($F$72+$G$72+$H$72),"") ->  | H78: =IFERROR(H72/($F$72+$G$72+$H$72),"") ->  | I78: =IFERROR(I72/($I$72+$J$72+$K$72),"") ->  | J78: =IFERROR(J72/($I$72+$J$72+$K$72),"") ->  | K78: =IFERROR(K72/($I$72+$J$72+$K$72),"") -> 
C79: 59 | D79: Difference (Total Board -Overall workforce ) | E79: Auto calculated | F79: =IFERROR(F73-F78,"") -> 

Sheet Backsheet (hidden)
A1: Data Item:N | B1: LOOKUP_REF | C1: ESRFiguresWhitePreviousYear:N | D1: VerifiedFiguresWhitePreviousYear:N | E1: ESRFiguresBMEPreviousYear:N | F1: VerifiedFiguresBMEPreviousYear:N | G1: ESRFiguresUnknownPreviousYear:N | H1: VerifiedFiguresUnknownPreviousYear:N | I1: ESRFiguresWhiteCurrentYear:N | J1: VerifiedFiguresWhiteCurrentYear:N | K1: ESRFiguresBMECurrentYear:N | L1: VerifiedFiguresBMECurrentYear:N | M1: ESRFiguresUnknownCurrentYear:N | N1: VerifiedFiguresUnknownCurrentYear:N | O1: WrcComments
A2: 1 | B2: Ind1_NC_Under Band 1 | C2: 0 | D2: =IF('Data for submission '!F17="",0,'Data for submission '!F17) -> 16 | E2: 0 | F2: =IF('Data for submission '!G17="",0,'Data for submission '!G17) -> 1 | G2: 0 | H2: =IF('Data for submission '!H17="",0,'Data for submission '!H17) -> 3 | I2: 0 | J2: =IF('Data for submission '!I17="",0,'Data for submission '!I17) -> 14 | K2: 0 | L2: =IF('Data for submission '!J17="",0,'Data for submission '!J17) -> 1 | M2: 0 | N2: =IF('Data for submission '!K17="",0,'Data for submission '!K17) -> 0 | O2: =IF(ISBLANK('Data for submission '!H17),"",'Data for submission '!H17) -> 3
A3: 2 | B3: Ind1_NC_Band 1 | C3: 0 | D3: =IF('Data for submission '!F18="",0,'Data for submission '!F18) -> 495 | E3: 0 | F3: =IF('Data for submission '!G18="",0,'Data for submission '!G18) -> 11 | G3: 0 | H3: =IF('Data for submission '!H18="",0,'Data for submission '!H18) -> 21 | I3: 0 | J3: =IF('Data for submission '!I18="",0,'Data for submission '!I18) -> 167 | K3: 0 | L3: =IF('Data for submission '!J18="",0,'Data for submission '!J18) -> 2 | M3: 0 | N3: =IF('Data for submission '!K18="",0,'Data for submission '!K18) -> 10 | O3: =IF(ISBLANK('Data for submission '!L18),"",'Data for submission '!L18) -> 
A4: 3 | B4: Ind1_NC_Band 2 | C4: 0 | D4: =IF('Data for submission '!F19="",0,'Data for submission '!F19) -> 364 | E4: 0 | F4: =IF('Data for submission '!G19="",0,'Data for submission '!G19) -> 12 | G4: 0 | H4: =IF('Data for submission '!H19="",0,'Data for submission '!H19) -> 9 | I4: 0 | J4: =IF('Data for submission '!I19="",0,'Data for submission '!I19) -> 795 | K4: 0 | L4: =IF('Data for submission '!J19="",0,'Data for submission '!J19) -> 23 | M4: 0 | N4: =IF('Data for submission '!K19="",0,'Data for submission '!K19) -> 16 | O4: =IF(ISBLANK('Data for submission '!L19),"",'Data for submission '!L19) -> 
A5: 4 | B5: Ind1_NC_Band 3 | C5: 0 | D5: =IF('Data for submission '!F20="",0,'Data for submission '!F20) -> 362 | E5: 0 | F5: =IF('Data for submission '!G20="",0,'Data for submission '!G20) -> 3 | G5: 0 | H5: =IF('Data for submission '!H20="",0,'Data for submission '!H20) -> 8 | I5: 0 | J5: =IF('Data for submission '!I20="",0,'Data for submission '!I20) -> 365 | K5: 0 | L5: =IF('Data for submission '!J20="",0,'Data for submission '!J20) -> 3 | M5: 0 | N5: =IF('Data for submission '!K20="",0,'Data for submission '!K20) -> 7 | O5: =IF(ISBLANK('Data for submission '!L20),"",'Data for submission '!L20) -> 
A6: 5 | B6: Ind1_NC_Band 4 | C6: 0 | D6: =IF('Data for submission '!F21="",0,'Data for submission '!F21) -> 139 | E6: 0 | F6: =IF('Data for submission '!G21="",0,'Data for submission '!G21) -> 3 | G6: 0 | H6: =IF('Data for submission '!H21="",0,'Data for submission '!H21) -> 4 | I6: 0 | J6: =IF('Data for submission '!I21="",0,'Data for submission '!I21) -> 153 | K6: 0 | L6: =IF('Data for submission '!J21="",0,'Data for submission '!J21) -> 3 | M6: 0 | N6: =IF('Data for submission '!K21="",0,'Data for submission '!K21) -> 5 | O6: =IF(ISBLANK('Data for submission '!L21),"",'Data for submission '!L21) -> 
A7: 6 | B7: Ind1_NC_Band 5 | C7: 0 | D7: =IF('Data for submission '!F22="",0,'Data for submission '!F22) -> 53 | E7: 0 | F7: =IF('Data for submission '!G22="",0,'Data for submission '!G22) -> 0 | G7: 0 | H7: =IF('Data for submission '!H22="",0,'Data for submission '!H22) -> 1 | I7: 0 | J7: =IF('Data for submission '!I22="",0,'Data for submission '!I22) -> 49 | K7: 0 | L7: =IF('Data for submission '!J22="",0,'Data for submission '!J22) -> 0 | M7: 0 | N7: =IF('Data for submission '!K22="",0,'Data for submission '!K22) -> 0 | O7: =IF(ISBLANK('Data for submission '!L22),"",'Data for submission '!L22) -> 
A8: 7 | B8: Ind1_NC_Band 6 | C8: 0 | D8: =IF('Data for submission '!F23="",0,'Data for submission '!F23) -> 65 | E8: 0 | F8: =IF('Data for submission '!G23="",0,'Data for submission '!G23) -> 2 | G8: 0 | H8: =IF('Data for submission '!H23="",0,'Data for submission '!H23) -> 2 | I8: 0 | J8: =IF('Data for submission '!I23="",0,'Data for submission '!I23) -> 70 | K8: 0 | L8: =IF('Data for submission '!J23="",0,'Data for submission '!J23) -> 1 | M8: 0 | N8: =IF('Data for submission '!K23="",0,'Data for submission '!K23) -> 2 | O8: =IF(ISBLANK('Data for submission '!L23),"",'Data for submission '!L23) -> 
A9: 8 | B9: Ind1_NC_Band 7 | C9: 0 | D9: =IF('Data for submission '!F24="",0,'Data for submission '!F24) -> 44 | E9: 0 | F9: =IF('Data for submission '!G24="",0,'Data for submission '!G24) -> 3 | G9: 0 | H9: =IF('Data for submission '!H24="",0,'Data for submission '!H24) -> 2 | I9: 0 | J9: =IF('Data for submission '!I24="",0,'Data for submission '!I24) -> 48 | K9: 0 | L9: =IF('Data for submission '!J24="",0,'Data for submission '!J24) -> 4 | M9: 0 | N9: =IF('Data for submission '!K24="",0,'Data for submission '!K24) -> 2 | O9: =IF(ISBLANK('Data for submission '!L24),"",'Data for submission '!L24) -> 
A10: 9 | B10: Ind1_NC_Band 8A | C10: 0 | D10: =IF('Data for submission '!F25="",0,'Data for submission '!F25) -> 42 | E10: 0 | F10: =IF('Data for submission '!G25="",0,'Data for submission '!G25) -> 0 | G10: 0 | H10: =IF('Data for submission '!H25="",0,'Data for submission '!H25) -> 0 | I10: 0 | J10: =IF('Data for submission '!I25="",0,'Data for submission '!I25) -> 44 | K10: 0 | L10: =IF('Data for submission '!J25="",0,'Data for submission '!J25) -> 1 | M10: 0 | N10: =IF('Data for submission '!K25="",0,'Data for submission '!K25) -> 0 | O10: =IF(ISBLANK('Data for submission '!L25),"",'Data for submission '!L25) -> 
A11: 10 | B11: Ind1_NC_Band 8B | C11: 0 | D11: =IF('Data for submission '!F26="",0,'Data for submission '!F26) -> 17 | E11: 0 | F11: =IF('Data for submission '!G26="",0,'Data for submission '!G26) -> 0 | G11: 0 | H11: =IF('Data for submission '!H26="",0,'Data for submission '!H26) -> 0 | I11: 0 | J11: =IF('Data for submission '!I26="",0,'Data for submission '!I26) -> 18 | K11: 0 | L11: =IF('Data for submission '!J26="",0,'Data for submission '!J26) -> 0 | M11: 0 | N11: =IF('Data for submission '!K26="",0,'Data for submission '!K26) -> 0 | O11: =IF(ISBLANK('Data for submission '!L26),"",'Data for submission '!L26) -> 
A12: 11 | B12: Ind1_NC_Band 8C | C12: 0 | D12: =IF('Data for submission '!F27="",0,'Data for submission '!F27) -> 14 | E12: 0 | F12: =IF('Data for submission '!G27="",0,'Data for submission '!G27) -> 0 | G12: 0 | H12: =IF('Data for submission '!H27="",0,'Data for submission '!H27) -> 0 | I12: 0 | J12: =IF('Data for submission '!I27="",0,'Data for submission '!I27) -> 19 | K12: 0 | L12: =IF('Data for submission '!J27="",0,'Data for submission '!J27) -> 0 | M12: 0 | N12: =IF('Data for submission '!K27="",0,'Data for submission '!K27) -> 0 | O12: =IF(ISBLANK('Data for submission '!L27),"",'Data for submission '!L27) -> 
A13: 12 | B13: Ind1_NC_Band 8D | C13: 0 | D13: =IF('Data for submission '!F28="",0,'Data for submission '!F28) -> 9 | E13: 0 | F13: =IF('Data for submission '!G28="",0,'Data for submission '!G28) -> 0 | G13: 0 | H13: =IF('Data for submission '!H28="",0,'Data for submission '!H28) -> 0 | I13: 0 | J13: =IF('Data for submission '!I28="",0,'Data for submission '!I28) -> 8 | K13: 0 | L13: =IF('Data for submission '!J28="",0,'Data for submission '!J28) -> 0 | M13: 0 | N13: =IF('Data for submission '!K28="",0,'Data for submission '!K28) -> 0 | O13: =IF(ISBLANK('Data for submission '!L28),"",'Data for submission '!L28) -> 
A14: 13 | B14: Ind1_NC_Band 9 | C14: 0 | D14: =IF('Data for submission '!F29="",0,'Data for submission '!F29) -> 0 | E14: 0 | F14: =IF('Data for submission '!G29="",0,'Data for submission '!G29) -> 0 | G14: 0 | H14: =IF('Data for submission '!H29="",0,'Data for submission '!H29) -> 0 | I14: 0 | J14: =IF('Data for submission '!I29="",0,'Data for submission '!I29) -> 0 | K14: 0 | L14: =IF('Data for submission '!J29="",0,'Data for submission '!J29) -> 0 | M14: 0 | N14: =IF('Data for submission '!K29="",0,'Data for submission '!K29) -> 0 | O14: =IF(ISBLANK('Data for submission '!L29),"",'Data for submission '!L29) -> 
A15: 14 | B15: Ind1_NC_VSM | C15: 0 | D15: =IF('Data for submission '!F30="",0,'Data for submission '!F30) -> 8 | E15: 0 | F15: =IF('Data for submission '!G30="",0,'Data for submission '!G30) -> 0 | G15: 0 | H15: =IF('Data for submission '!H30="",0,'Data for submission '!H30) -> 0 | I15: 0 | J15: =IF('Data for submission '!I30="",0,'Data for submission '!I30) -> 7 | K15: 0 | L15: =IF('Data for submission '!J30="",0,'Data for submission '!J30) -> 0 | M15: 0 | N15: =IF('Data for submission '!K30="",0,'Data for submission '!K30) -> 0 | O15: =IF(ISBLANK('Data for submission '!L30),"",'Data for submission '!L30) -> 
A16: 15 | B16: Ind1_Clin_NMUnder Band 1 | C16: 0 | D16: =IF('Data for submission '!F33="",0,'Data for submission '!F33) -> 3 | E16: 0 | F16: =IF('Data for submission '!G33="",0,'Data for submission '!G33) -> 0 | G16: 0 | H16: =IF('Data for submission '!H33="",0,'Data for submission '!H33) -> 0 | I16: 0 | J16: =IF('Data for submission '!I33="",0,'Data for submission '!I33) -> 2 | K16: 0 | L16: =IF('Data for submission '!J33="",0,'Data for submission '!J33) -> 0 | M16: 0 | N16: =IF('Data for submission '!K33="",0,'Data for submission '!K33) -> 0 | O16: =IF(ISBLANK('Data for submission '!L33),"",'Data for submission '!L33) -> 
A17: 16 | B17: Ind1_Clin_NMBand 1 | C17: 0 | D17: =IF('Data for submission '!F34="",0,'Data for submission '!F34) -> 50 | E17: 0 | F17: =IF('Data for submission '!G34="",0,'Data for submission '!G34) -> 0 | G17: 0 | H17: =IF('Data for submission '!H34="",0,'Data for submission '!H34) -> 3 | I17: 0 | J17: =IF('Data for submission '!I34="",0,'Data for submission '!I34) -> 18 | K17: 0 | L17: =IF('Data for submission '!J34="",0,'Data for submission '!J34) -> 0 | M17: 0 | N17: =IF('Data for submission '!K34="",0,'Data for submission '!K34) -> 0 | O17: =IF(ISBLANK('Data for submission '!L34),"",'Data for submission '!L34) -> 
A18: 17 | B18: Ind1_Clin_NMBand 2 | C18: 0 | D18: =IF('Data for submission '!F35="",0,'Data for submission '!F35) -> 1135 | E18: 0 | F18: =IF('Data for submission '!G35="",0,'Data for submission '!G35) -> 32 | G18: 0 | H18: =IF('Data for submission '!H35="",0,'Data for submission '!H35) -> 34 | I18: 0 | J18: =IF('Data for submission '!I35="",0,'Data for submission '!I35) -> 1089 | K18: 0 | L18: =IF('Data for submission '!J35="",0,'Data for submission '!J35) -> 33 | M18: 0 | N18: =IF('Data for submission '!K35="",0,'Data for submission '!K35) -> 32 | O18: =IF(ISBLANK('Data for submission '!L35),"",'Data for submission '!L35) -> 
A19: 18 | B19: Ind1_Clin_NMBand 3 | C19: 0 | D19: =IF('Data for submission '!F36="",0,'Data for submission '!F36) -> 285 | E19: 0 | F19: =IF('Data for submission '!G36="",0,'Data for submission '!G36) -> 3 | G19: 0 | H19: =IF('Data for submission '!H36="",0,'Data for submission '!H36) -> 6 | I19: 0 | J19: =IF('Data for submission '!I36="",0,'Data for submission '!I36) -> 331 | K19: 0 | L19: =IF('Data for submission '!J36="",0,'Data for submission '!J36) -> 16 | M19: 0 | N19: =IF('Data for submission '!K36="",0,'Data for submission '!K36) -> 6 | O19: =IF(ISBLANK('Data for submission '!L36),"",'Data for submission '!L36) -> 
A20: 19 | B20: Ind1_Clin_NMBand 4 | C20: 0 | D20: =IF('Data for submission '!F37="",0,'Data for submission '!F37) -> 90 | E20: 0 | F20: =IF('Data for submission '!G37="",0,'Data for submission '!G37) -> 1 | G20: 0 | H20: =IF('Data for submission '!H37="",0,'Data for submission '!H37) -> 5 | I20: 0 | J20: =IF('Data for submission '!I37="",0,'Data for submission '!I37) -> 94 | K20: 0 | L20: =IF('Data for submission '!J37="",0,'Data for submission '!J37) -> 2 | M20: 0 | N20: =IF('Data for submission '!K37="",0,'Data for submission '!K37) -> 4 | O20: =IF(ISBLANK('Data for submission '!L37),"",'Data for submission '!L37) -> 
A21: 20 | B21: Ind1_Clin_NMBand 5 | C21: 0 | D21: =IF('Data for submission '!F38="",0,'Data for submission '!F38) -> 1055 | E21: 0 | F21: =IF('Data for submission '!G38="",0,'Data for submission '!G38) -> 121 | G21: 0 | H21: =IF('Data for submission '!H38="",0,'Data for submission '!H38) -> 34 | I21: 0 | J21: =IF('Data for submission '!I38="",0,'Data for submission '!I38) -> 1004 | K21: 0 | L21: =IF('Data for submission '!J38="",0,'Data for submission '!J38) -> 134 | M21: 0 | N21: =IF('Data for submission '!K38="",0,'Data for submission '!K38) -> 32 | O21: =IF(ISBLANK('Data for submission '!L38),"",'Data for submission '!L38) -> 
A22: 21 | B22: Ind1_Clin_NMBand 6 | C22: 0 | D22: =IF('Data for submission '!F39="",0,'Data for submission '!F39) -> 772 | E22: 0 | F22: =IF('Data for submission '!G39="",0,'Data for submission '!G39) -> 28 | G22: 0 | H22: =IF('Data for submission '!H39="",0,'Data for submission '!H39) -> 26 | I22: 0 | J22: =IF('Data for submission '!I39="",0,'Data for submission '!I39) -> 797 | K22: 0 | L22: =IF('Data for submission '!J39="",0,'Data for submission '!J39) -> 34 | M22: 0 | N22: =IF('Data for submission '!K39="",0,'Data for submission '!K39) -> 26 | O22: =IF(ISBLANK('Data for submission '!L39),"",'Data for submission '!L39) -> 
A23: 22 | B23: Ind1_Clin_NMBand 7 | C23: 0 | D23: =IF('Data for submission '!F40="",0,'Data for submission '!F40) -> 377 | E23: 0 | F23: =IF('Data for submission '!G40="",0,'Data for submission '!G40) -> 9 | G23: 0 | H23: =IF('Data for submission '!H40="",0,'Data for submission '!H40) -> 8 | I23: 0 | J23: =IF('Data for submission '!I40="",0,'Data for submission '!I40) -> 406 | K23: 0 | L23: =IF('Data for submission '!J40="",0,'Data for submission '!J40) -> 9 | M23: 0 | N23: =IF('Data for submission '!K40="",0,'Data for submission '!K40) -> 8 | O23: =IF(ISBLANK('Data for submission '!L40),"",'Data for submission '!L40) -> 
A24: 23 | B24: Ind1_Clin_NMBand 8A | C24: 0 | D24: =IF('Data for submission '!F41="",0,'Data for submission '!F41) -> 74 | E24: 0 | F24: =IF('Data for submission '!G41="",0,'Data for submission '!G41) -> 7 | G24: 0 | H24: =IF('Data for submission '!H41="",0,'Data for submission '!H41) -> 2 | I24: 0 | J24: =IF('Data for submission '!I41="",0,'Data for submission '!I41) -> 79 | K24: 0 | L24: =IF('Data for submission '!J41="",0,'Data for submission '!J41) -> 7 | M24: 0 | N24: =IF('Data for submission '!K41="",0,'Data for submission '!K41) -> 1 | O24: =IF(ISBLANK('Data for submission '!L41),"",'Data for submission '!L41) -> 
A25: 24 | B25: Ind1_Clin_NMBand 8B | C25: 0 | D25: =IF('Data for submission '!F42="",0,'Data for submission '!F42) -> 12 | E25: 0 | F25: =IF('Data for submission '!G42="",0,'Data for submission '!G42) -> 2 | G25: 0 | H25: =IF('Data for submission '!H42="",0,'Data for submission '!H42) -> 0 | I25: 0 | J25: =IF('Data for submission '!I42="",0,'Data for submission '!I42) -> 12 | K25: 0 | L25: =IF('Data for submission '!J42="",0,'Data for submission '!J42) -> 2 | M25: 0 | N25: =IF('Data for submission '!K42="",0,'Data for submission '!K42) -> 0 | O25: =IF(ISBLANK('Data for submission '!L42),"",'Data for submission '!L42) -> 
A26: 25 | B26: Ind1_Clin_NMBand 8C | C26: 0 | D26: =IF('Data for submission '!F43="",0,'Data for submission '!F43) -> 13 | E26: 0 | F26: =IF('Data for submission '!G43="",0,'Data for submission '!G43) -> 0 | G26: 0 | H26: =IF('Data for submission '!H43="",0,'Data for submission '!H43) -> 0 | I26: 0 | J26: =IF('Data for submission '!I43="",0,'Data for submission '!I43) -> 13 | K26: 0 | L26: =IF('Data for submission '!J43="",0,'Data for submission '!J43) -> 0 | M26: 0 | N26: =IF('Data for submission '!K43="",0,'Data for submission '!K43) -> 0 | O26: =IF(ISBLANK('Data for submission '!L43),"",'Data for submission '!L43) -> 
A27: 26 | B27: Ind1_Clin_NMBand 8D | C27: 0 | D27: =IF('Data for submission '!F44="",0,'Data for submission '!F44) -> 3 | E27: 0 | F27: =IF('Data for submission '!G44="",0,'Data for submission '!G44) -> 0 | G27: 0 | H27: =IF('Data for submission '!H44="",0,'Data for submission '!H44) -> 0 | I27: 0 | J27: =IF('Data for submission '!I44="",0,'Data for submission '!I44) -> 3 | K27: 0 | L27: =IF('Data for submission '!J44="",0,'Data for submission '!J44) -> 0 | M27: 0 | N27: =IF('Data for submission '!K44="",0,'Data for submission '!K44) -> 0 | O27: =IF(ISBLANK('Data for submission '!L44),"",'Data for submission '!L44) -> 
A28: 27 | B28: Ind1_Clin_NMBand 9 | C28: 0 | D28: =IF('Data for submission '!F45="",0,'Data for submission '!F45) -> 1 | E28: 0 | F28: =IF('Data for submission '!G45="",0,'Data for submission '!G45) -> 1 | G28: 0 | H28: =IF('Data for submission '!H45="",0,'Data for submission '!H45) -> 1 | I28: 0 | J28: =IF('Data for submission '!I45="",0,'Data for submission '!I45) -> 1 | K28: 0 | L28: =IF('Data for submission '!J45="",0,'Data for submission '!J45) -> 1 | M28: 0 | N28: =IF('Data for submission '!K45="",0,'Data for submission '!K45) -> 1 | O28: =IF(ISBLANK('Data for submission '!L45),"",'Data for submission '!L45) -> 
A29: 28 | B29: Ind1_Clin_NMVSM | C29: 0 | D29: =IF('Data for submission '!F46="",0,'Data for submission '!F46) -> 7 | E29: 0 | F29: =IF('Data for submission '!G46="",0,'Data for submission '!G46) -> 2 | G29: 0 | H29: =IF('Data for submission '!H46="",0,'Data for submission '!H46) -> 1 | I29: 0 | J29: =IF('Data for submission '!I46="",0,'Data for submission '!I46) -> 7 | K29: 0 | L29: =IF('Data for submission '!J46="",0,'Data for submission '!J46) -> 1 | M29: 0 | N29: =IF('Data for submission '!K46="",0,'Data for submission '!K46) -> 0 | O29: =IF(ISBLANK('Data for submission '!L46),"",'Data for submission '!L46) -> 
A30: 29 | B30: Ind1_Clin_MDConsultants | C30: 0 | D30: =IF('Data for submission '!F48="",0,'Data for submission '!F48) -> 105 | E30: 0 | F30: =IF('Data for submission '!G48="",0,'Data for submission '!G48) -> 149 | G30: 0 | H30: =IF('Data for submission '!H48="",0,'Data for submission '!H48) -> 335 | I30: 0 | J30: =IF('Data for submission '!I48="",0,'Data for submission '!I48) -> 105 | K30: 0 | L30: =IF('Data for submission '!J48="",0,'Data for submission '!J48) -> 156 | M30: 0 | N30: =IF('Data for submission '!K48="",0,'Data for submission '!K48) -> 300 | O30: =IF(ISBLANK('Data for submission '!L48),"",'Data for submission '!L48) -> 
A31: 30 | B31: Ind1_Clin_MD of which Senior medical manager | C31: 0 | D31: =IF('Data for submission '!F49="",0,'Data for submission '!F49) -> 0 | E31: 0 | F31: =IF('Data for submission '!G49="",0,'Data for submission '!G49) -> 0 | G31: 0 | H31: =IF('Data for submission '!H49="",0,'Data for submission '!H49) -> 0 | I31: 0 | J31: =IF('Data for submission '!I49="",0,'Data for submission '!I49) -> 0 | K31: 0 | L31: =IF('Data for submission '!J49="",0,'Data for submission '!J49) -> 0 | M31: 0 | N31: =IF('Data for submission '!K49="",0,'Data for submission '!K49) -> 0 | O31: =IF(ISBLANK('Data for submission '!L49),"",'Data for submission '!L49) -> 
A32: 31 | B32: Ind1_Clin_MDNon-consultant career grade | C32: 0 | D32: =IF('Data for submission '!F50="",0,'Data for submission '!F50) -> 22 | E32: 0 | F32: =IF('Data for submission '!G50="",0,'Data for submission '!G50) -> 66 | G32: 0 | H32: =IF('Data for submission '!H50="",0,'Data for submission '!H50) -> 2 | I32: 0 | J32: =IF('Data for submission '!I50="",0,'Data for submission '!I50) -> 24 | K32: 0 | L32: =IF('Data for submission '!J50="",0,'Data for submission '!J50) -> 68 | M32: 0 | N32: =IF('Data for submission '!K50="",0,'Data for submission '!K50) -> 2 | O32: =IF(ISBLANK('Data for submission '!L50),"",'Data for submission '!L50) -> 
A33: 32 | B33: Ind1_Clin_MDTrainee grades | C33: 0 | D33: =IF('Data for submission '!F51="",0,'Data for submission '!F51) -> 100 | E33: 0 | F33: =IF('Data for submission '!G51="",0,'Data for submission '!G51) -> 119 | G33: 0 | H33: =IF('Data for submission '!H51="",0,'Data for submission '!H51) -> 15 | I33: 0 | J33: =IF('Data for submission '!I51="",0,'Data for submission '!I51) -> 96 | K33: 0 | L33: =IF('Data for submission '!J51="",0,'Data for submission '!J51) -> 140 | M33: 0 | N33: =IF('Data for submission '!K51="",0,'Data for submission '!K51) -> 18 | O33: =IF(ISBLANK('Data for submission '!L51),"",'Data for submission '!L51) -> 
A34: 33 | B34: Ind1_Clin_MDOther | C34: 0 | D34: =IF('Data for submission '!F52="",0,'Data for submission '!F52) -> 0 | E34: 0 | F34: =IF('Data for submission '!G52="",0,'Data for submission '!G52) -> 0 | G34: 0 | H34: =IF('Data for submission '!H52="",0,'Data for submission '!H52) -> 0 | I34: 0 | J34: =IF('Data for submission '!I52="",0,'Data for submission '!I52) -> 0 | K34: 0 | L34: =IF('Data for submission '!J52="",0,'Data for submission '!J52) -> 0 | M34: 0 | N34: =IF('Data for submission '!K52="",0,'Data for submission '!K52) -> 0 | O34: =IF(ISBLANK('Data for submission '!L52),"",'Data for submission '!L52) -> 
A35: 34 | B35: Ind2_Number of shortlisted applicants: | C35: 0 | D35: =IF('Data for submission '!F53="",0,'Data for submission '!F53) -> 533 | E35: 0 | F35: =IF('Data for submission '!G53="",0,'Data for submission '!G53) -> 70 | G35: 0 | H35: =IF('Data for submission '!H53="",0,'Data for submission '!H53) -> 6 | I35: 0 | J35: =IF('Data for submission '!I53="",0,'Data for submission '!I53) -> 1145 | K35: 0 | L35: =IF('Data for submission '!J53="",0,'Data for submission '!J53) -> 142 | M35: 0 | N35: =IF('Data for submission '!K53="",0,'Data for submission '!K53) -> 61 | O35: =IF(ISBLANK('Data for submission '!L53),"",'Data for submission '!L53) -> 
A36: 35 | B36: Ind2_Number appointed from shortlisting: | C36: 0 | D36: =IF('Data for submission '!F54="",0,'Data for submission '!F54) -> 266 | E36: 0 | F36: =IF('Data for submission '!G54="",0,'Data for submission '!G54) -> 18 | G36: 0 | H36: =IF('Data for submission '!H54="",0,'Data for submission '!H54) -> 0 | I36: 0 | J36: =IF('Data for submission '!I54="",0,'Data for submission '!I54) -> 403 | K36: 0 | L36: =IF('Data for submission '!J54="",0,'Data for submission '!J54) -> 39 | M36: 0 | N36: =IF('Data for submission '!K54="",0,'Data for submission '!K54) -> 30 | O36: =IF(ISBLANK('Data for submission '!L54),"",'Data for submission '!L54) -> 
A37: 36 | B37: Ind2_Relative likelihood of shortlisting/appointed: | C37: 0 | D37: =IF('Data for submission '!F55="",0,'Data for submission '!F55) -> 0.4990619137 | E37: 0 | F37: =IF('Data for submission '!G55="",0,'Data for submission '!G55) -> 0.2571428571 | G37: 0 | H37: =IF('Data for submission '!H55="",0,'Data for submission '!H55) -> 0 | I37: 0 | J37: =IF('Data for submission '!I55="",0,'Data for submission '!I55) -> 0.3519650655 | K37: 0 | L37: =IF('Data for submission '!J55="",0,'Data for submission '!J55) -> 0.2746478873 | M37: 0 | N37: =IF('Data for submission '!K55="",0,'Data for submission '!K55) -> 0.4918032787 | O37: =IF(ISBLANK('Data for submission '!L55),"",'Data for submission '!L55) -> 
A38: 37 | B38: Ind2_Relative likelihood of White staff being appointed from shortlisting compared to BME staff: | C38: 0 | D38: =IF('Data for submission '!F56="",0,'Data for submission '!F56) -> 1.940796331 | E38: 0 | F38: =IF('Data for submission '!G56="",0,'Data for submission '!G56) -> 0 | G38: 0 | H38: =IF('Data for submission '!H56="",0,'Data for submission '!H56) -> 0 | I38: 0 | J38: =IF('Data for submission '!I56="",0,'Data for submission '!I56) -> 1.281513828 | K38: 0 | L38: =IF('Data for submission '!J56="",0,'Data for submission '!J56) -> 0 | M38: 0 | N38: =IF('Data for submission '!K56="",0,'Data for submission '!K56) -> 0 | O38: =IF(ISBLANK('Data for submission '!L56),"",'Data for submission '!L56) -> 
A39: 38 | B39: Ind3_Number of staff in workforce: | C39: 0 | D39: =IF('Data for submission '!F57="",0,'Data for submission '!F57) -> 5732 | E39: 0 | F39: =IF('Data for submission '!G57="",0,'Data for submission '!G57) -> 575 | G39: 0 | H39: =IF('Data for submission '!H57="",0,'Data for submission '!H57) -> 522 | I39: 0 | J39: =IF('Data for submission '!I57="",0,'Data for submission '!I57) -> 5838 | K39: 0 | L39: =IF('Data for submission '!J57="",0,'Data for submission '!J57) -> 641 | M39: 0 | N39: =IF('Data for submission '!K57="",0,'Data for submission '!K57) -> 472 | O39: =IF(ISBLANK('Data for submission '!L57),"",'Data for submission '!L57) -> 
A40: 39 | B40: Ind3_Number of staff entering the formal disciplinary process: | C40: 0 | D40: =IF('Data for submission '!F58="",0,'Data for submission '!F58) -> 55 | E40: 0 | F40: =IF('Data for submission '!G58="",0,'Data for submission '!G58) -> 4 | G40: 0 | H40: =IF('Data for submission '!H58="",0,'Data for submission '!H58) -> 1 | I40: 0 | J40: =IF('Data for submission '!I58="",0,'Data for submission '!I58) -> 56 | K40: 0 | L40: =IF('Data for submission '!J58="",0,'Data for submission '!J58) -> 4 | M40: 0 | N40: =IF('Data for submission '!K58="",0,'Data for submission '!K58) -> 2 | O40: =IF(ISBLANK('Data for submission '!L58),"",'Data for submission '!L58) -> 
A41: 40 | B41: Ind3_Likelihood of staff entering the formal disciplinary process: | C41: 0 | D41: =IF('Data for submission '!F59="",0,'Data for submission '!F59) -> 0.00959525471 | E41: 0 | F41: =IF('Data for submission '!G59="",0,'Data for submission '!G59) -> 0.006956521739 | G41: 0 | H41: =IF('Data for submission '!H59="",0,'Data for submission '!H59) -> 0.001915708812 | I41: 0 | J41: =IF('Data for submission '!I59="",0,'Data for submission '!I59) -> 0.009592326139 | K41: 0 | L41: =IF('Data for submission '!J59="",0,'Data for submission '!J59) -> 0.00624024961 | M41: 0 | N41: =IF('Data for submission '!K59="",0,'Data for submission '!K59) -> 0.004237288136 | O41: =IF(ISBLANK('Data for submission '!L59),"",'Data for submission '!L59) -> 
A42: 41 | B42: Ind3_Relative likelihood of BME staff entering the formal disciplinary process compared to White staff: | C42: 0 | D42: =IF('Data for submission '!F60="",0,'Data for submission '!F60) -> 0 | E42: 0 | F42: =IF('Data for submission '!G60="",0,'Data for submission '!G60) -> 0.7249960474 | G42: 0 | H42: =IF('Data for submission '!H60="",0,'Data for submission '!H60) -> 0 | I42: 0 | J42: =IF('Data for submission '!I60="",0,'Data for submission '!I60) -> 0 | K42: 0 | L42: =IF('Data for submission '!J60="",0,'Data for submission '!J60) -> 0.6505460218 | M42: 0 | N42: =IF('Data for submission '!K60="",0,'Data for submission '!K60) -> 0 | O42: =IF(ISBLANK('Data for submission '!L60),"",'Data for submission '!L60) -> 
A43: 42 | B43: Ind4_Number of staff in workforce | C43: 0 | D43: =IF('Data for submission '!F61="",0,'Data for submission '!F61) -> 5732 | E43: 0 | F43: =IF('Data for submission '!G61="",0,'Data for submission '!G61) -> 575 | G43: 0 | H43: =IF('Data for submission '!H61="",0,'Data for submission '!H61) -> 522 | I43: 0 | J43: =IF('Data for submission '!I61="",0,'Data for submission '!I61) -> 5838 | K43: 0 | L43: =IF('Data for submission '!J61="",0,'Data for submission '!J61) -> 641 | M43: 0 | N43: =IF('Data for submission '!K61="",0,'Data for submission '!K61) -> 472 | O43: =IF(ISBLANK('Data for submission '!L61),"",'Data for submission '!L61) -> 
A44: 43 | B44: Ind4_Number of staff accessing non-mandatory training and CPD | C44: 0 | D44: =IF('Data for submission '!F62="",0,'Data for submission '!F62) -> 5534 | E44: 0 | F44: =IF('Data for submission '!G62="",0,'Data for submission '!G62) -> 509 | G44: 0 | H44: =IF('Data for submission '!H62="",0,'Data for submission '!H62) -> 208 | I44: 0 | J44: =IF('Data for submission '!I62="",0,'Data for submission '!I62) -> 5565 | K44: 0 | L44: =IF('Data for submission '!J62="",0,'Data for submission '!J62) -> 566 | M44: 0 | N44: =IF('Data for submission '!K62="",0,'Data for submission '!K62) -> 203 | O44: =IF(ISBLANK('Data for submission '!L62),"",'Data for submission '!L62) -> 
A45: 44 | B45: Ind4_Likelihood of staff accessing non-mandatory training and CPD: | C45: 0 | D45: =IF('Data for submission '!F63="",0,'Data for submission '!F63) -> 0.965457083 | E45: 0 | F45: =IF('Data for submission '!G63="",0,'Data for submission '!G63) -> 0.8852173913 | G45: 0 | H45: =IF('Data for submission '!H63="",0,'Data for submission '!H63) -> 0.398467433 | I45: 0 | J45: =IF('Data for submission '!I63="",0,'Data for submission '!I63) -> 0.9532374101 | K45: 0 | L45: =IF('Data for submission '!J63="",0,'Data for submission '!J63) -> 0.8829953198 | M45: 0 | N45: =IF('Data for submission '!K63="",0,'Data for submission '!K63) -> 0.4300847458 | O45: =IF(ISBLANK('Data for submission '!L63),"",'Data for submission '!L63) -> 
A46: 45 | B46: Ind4_Relative likelihood of White staff accessing non-mandatory training and CPD compared to BME staff: | C46: 0 | D46: =IF('Data for submission '!F64="",0,'Data for submission '!F64) -> 1.090644053 | E46: 0 | F46: =IF('Data for submission '!G64="",0,'Data for submission '!G64) -> 0 | G46: 0 | H46: =IF('Data for submission '!H64="",0,'Data for submission '!H64) -> 0 | I46: 0 | J46: =IF('Data for submission '!I64="",0,'Data for submission '!I64) -> 1.079549788 | K46: 0 | L46: =IF('Data for submission '!J64="",0,'Data for submission '!J64) -> 0 | M46: 0 | N46: =IF('Data for submission '!K64="",0,'Data for submission '!K64) -> 0 | O46: =IF(ISBLANK('Data for submission '!L64),"",'Data for submission '!L64) -> 
A47: 46 | B47: Ind_5% of staff experiencing harassment, bullying or abuse from patients, relatives or the public in last 12 months | C47: 0 | D47: 0 | E47: 0 | F47: 0 | G47: 0 | H47: 0 | I47: 0 | J47: 0 | K47: 0 | L47: 0 | M47: 0 | N47: 0 | O47: 0
A48: 47 | B48: Ind6_% of staff experiencing harassment, bullying or abuse from staff in last 12 months | C48: 0 | D48: 0 | E48: 0 | F48: 0 | G48: 0 | H48: 0 | I48: 0 | J48: 0 | K48: 0 | L48: 0 | M48: 0 | N48: 0 | O48: 0
A49: 48 | B49: Ind7_% staff believing that trust provides equal opportunities for career progression or promotion | C49: 0 | D49: 0 | E49: 0 | F49: 0 | G49: 0 | H49: 0 | I49: 0 | J49: 0 | K49: 0 | L49: 0 | M49: 0 | N49: 0 | O49: 0
A50: 49 | B50: Ind8_% staff personally experienced discrimination at work from Manager/team leader or other colleague | C50: 0 | D50: 0 | E50: 0 | F50: 0 | G50: 0 | H50: 0 | I50: 0 | J50: 0 | K50: 0 | L50: 0 | M50: 0 | N50: 0 | O50: 0
A51: 50 | B51: Ind9_Total Board members | C51: 0 | D51: =IF('Data for submission '!F65="",0,'Data for submission '!F65) -> 12 | E51: 0 | F51: =IF('Data for submission '!G65="",0,'Data for submission '!G65) -> 2 | G51: 0 | H51: =IF('Data for submission '!H65="",0,'Data for submission '!H65) -> 0 | I51: 0 | J51: =IF('Data for submission '!I65="",0,'Data for submission '!I65) -> 12 | K51: 0 | L51: =IF('Data for submission '!J65="",0,'Data for submission '!J65) -> 1 | M51: 0 | N51: =IF('Data for submission '!K65="",0,'Data for submission '!K65) -> 0 | O51: =IF(ISBLANK('Data for submission '!L65),"",'Data for submission '!L65) -> 
A52: 51 | B52: Ind9_ of which: Voting Board members | C52: 0 | D52: =IF('Data for submission '!F66="",0,'Data for submission '!F66) -> 11 | E52: 0 | F52: =IF('Data for submission '!G66="",0,'Data for submission '!G66) -> 2 | G52: 0 | H52: =IF('Data for submission '!H66="",0,'Data for submission '!H66) -> 0 | I52: 0 | J52: =IF('Data for submission '!I66="",0,'Data for submission '!I66) -> 11 | K52: 0 | L52: =IF('Data for submission '!J66="",0,'Data for submission '!J66) -> 1 | M52: 0 | N52: =IF('Data for submission '!K66="",0,'Data for submission '!K66) -> 0 | O52: =IF(ISBLANK('Data for submission '!L66),"",'Data for submission '!L66) -> 
A53: 52 | B53: Ind9_ : Non Voting Board members | C53: 0 | D53: =IF('Data for submission '!F67="",0,'Data for submission '!F67) -> 1 | E53: 0 | F53: =IF('Data for submission '!G67="",0,'Data for submission '!G67) -> 0 | G53: 0 | H53: =IF('Data for submission '!H67="",0,'Data for submission '!H67) -> 0 | I53: 0 | J53: =IF('Data for submission '!I67="",0,'Data for submission '!I67) -> 1 | K53: 0 | L53: =IF('Data for submission '!J67="",0,'Data for submission '!J67) -> 0 | M53: 0 | N53: =IF('Data for submission '!K67="",0,'Data for submission '!K67) -> 0 | O53: =IF(ISBLANK('Data for submission '!L67),"",'Data for submission '!L67) -> 
A54: 53 | B54: Ind9_Total Board members | C54: 0 | D54: =IF('Data for submission '!F68="",0,'Data for submission '!F68) -> 12 | E54: 0 | F54: =IF('Data for submission '!G68="",0,'Data for submission '!G68) -> 2 | G54: 0 | H54: =IF('Data for submission '!H68="",0,'Data for submission '!H68) -> 0 | I54: 0 | J54: =IF('Data for submission '!I68="",0,'Data for submission '!I68) -> 12 | K54: 0 | L54: =IF('Data for submission '!J68="",0,'Data for submission '!J68) -> 1 | M54: 0 | N54: =IF('Data for submission '!K68="",0,'Data for submission '!K68) -> 0 | O54: =IF(ISBLANK('Data for submission '!L68),"",'Data for submission '!L68) -> 
A55: 54 | B55: Ind9_ of which: Exec Board members | C55: 0 | D55: =IF('Data for submission '!F69="",0,'Data for submission '!F69) -> 6 | E55: 0 | F55: =IF('Data for submission '!G69="",0,'Data for submission '!G69) -> 1 | G55: 0 | H55: =IF('Data for submission '!H69="",0,'Data for submission '!H69) -> 0 | I55: 0 | J55: =IF('Data for submission '!I69="",0,'Data for submission '!I69) -> 6 | K55: 0 | L55: =IF('Data for submission '!J69="",0,'Data for submission '!J69) -> 1 | M55: 0 | N55: =IF('Data for submission '!K69="",0,'Data for submission '!K69) -> 0 | O55: =IF(ISBLANK('Data for submission '!L69),"",'Data for submission '!L69) -> 
A56: 55 | B56: Ind9_ : Non Executive Board members | C56: 0 | D56: =IF('Data for submission '!F70="",0,'Data for submission '!F70) -> 6 | E56: 0 | F56: =IF('Data for submission '!G70="",0,'Data for submission '!G70) -> 1 | G56: 0 | H56: =IF('Data for submission '!H70="",0,'Data for submission '!H70) -> 0 | I56: 0 | J56: =IF('Data for submission '!I70="",0,'Data for submission '!I70) -> 6 | K56: 0 | L56: =IF('Data for submission '!J70="",0,'Data for submission '!J70) -> 0 | M56: 0 | N56: =IF('Data for submission '!K70="",0,'Data for submission '!K70) -> 0 | O56: =IF(ISBLANK('Data for submission '!L70),"",'Data for submission '!L70) -> 
A57: 56 | B57: Ind9_Number of staff in overall workforce | C57: 0 | D57: =IF('Data for submission '!F71="",0,'Data for submission '!F71) -> 5732 | E57: 0 | F57: =IF('Data for submission '!G71="",0,'Data for submission '!G71) -> 575 | G57: 0 | H57: =IF('Data for submission '!H71="",0,'Data for submission '!H71) -> 522 | I57: 0 | J57: =IF('Data for submission '!I71="",0,'Data for submission '!I71) -> 5838 | K57: 0 | L57: =IF('Data for submission '!J71="",0,'Data for submission '!J71) -> 641 | M57: 0 | N57: =IF('Data for submission '!K71="",0,'Data for submission '!K71) -> 472 | O57: =IF(ISBLANK('Data for submission '!L71),"",'Data for submission '!L71) -> 
A58: 57 | B58: Ind9_Total Board members - % by Ethnicity | C58: 0 | D58: =IF('Data for submission '!F72="",0,'Data for submission '!F72) -> 0.8571428571 | E58: 0 | F58: =IF('Data for submission '!G72="",0,'Data for submission '!G72) -> 0.1428571429 | G58: 0 | H58: =IF('Data for submission '!H72="",0,'Data for submission '!H72) -> 0 | I58: 0 | J58: =IF('Data for submission '!I72="",0,'Data for submission '!I72) -> 0.9230769231 | K58: 0 | L58: =IF('Data for submission '!J72="",0,'Data for submission '!J72) -> 0.07692307692 | M58: 0 | N58: =IF('Data for submission '!K72="",0,'Data for submission '!K72) -> 0 | O58: =IF(ISBLANK('Data for submission '!L72),"",'Data for submission '!L72) -> 
A59: 58 | B59: Ind9_Voting Board Member - % by Ethnicity | C59: 0 | D59: =IF('Data for submission '!F73="",0,'Data for submission '!F73) -> 0.8461538462 | E59: 0 | F59: =IF('Data for submission '!G73="",0,'Data for submission '!G73) -> 0.1538461538 | G59: 0 | H59: =IF('Data for submission '!H73="",0,'Data for submission '!H73) -> 0 | I59: 0 | J59: =IF('Data for submission '!I73="",0,'Data for submission '!I73) -> 0.9166666667 | K59: 0 | L59: =IF('Data for submission '!J73="",0,'Data for submission '!J73) -> 0.08333333333 | M59: 0 | N59: =IF('Data for submission '!K73="",0,'Data for submission '!K73) -> 0 | O59: =IF(ISBLANK('Data for submission '!L73),"",'Data for submission '!L73) -> 
A60: 59 | B60: Ind9_Non Voting Board Member - % by Ethnicity | C60: 0 | D60: =IF('Data for submission '!F74="",0,'Data for submission '!F74) -> 1 | E60: 0 | F60: =IF('Data for submission '!G74="",0,'Data for submission '!G74) -> 0 | G60: 0 | H60: =IF('Data for submission '!H74="",0,'Data for submission '!H74) -> 0 | I60: 0 | J60: =IF('Data for submission '!I74="",0,'Data for submission '!I74) -> 1 | K60: 0 | L60: =IF('Data for submission '!J74="",0,'Data for submission '!J74) -> 0 | M60: 0 | N60: =IF('Data for submission '!K74="",0,'Data for submission '!K74) -> 0 | O60: =IF(ISBLANK('Data for submission '!L74),"",'Data for submission '!L74) -> 
A61: 60 | B61: Ind9_Executive Board Member - % by Ethnicity | C61: 0 | D61: =IF('Data for submission '!F75="",0,'Data for submission '!F75) -> 0.8571428571 | E61: 0 | F61: =IF('Data for submission '!G75="",0,'Data for submission '!G75) -> 0.1428571429 | G61: 0 | H61: =IF('Data for submission '!H75="",0,'Data for submission '!H75) -> 0 | I61: 0 | J61: =IF('Data for submission '!I75="",0,'Data for submission '!I75) -> 0.8571428571 | K61: 0 | L61: =IF('Data for submission '!J75="",0,'Data for submission '!J75) -> 0.1428571429 | M61: 0 | N61: =IF('Data for submission '!K75="",0,'Data for submission '!K75) -> 0 | O61: =IF(ISBLANK('Data for submission '!L75),"",'Data for submission '!L75) -> 
A62: 61 | B62: Ind9_Non Executive Board Member - % by Ethnicity | C62: 0 | D62: =IF('Data for submission '!F76="",0,'Data for submission '!F76) -> 0.8571428571 | E62: 0 | F62: =IF('Data for submission '!G76="",0,'Data for submission '!G76) -> 0.1428571429 | G62: 0 | H62: =IF('Data for submission '!H76="",0,'Data for submission '!H76) -> 0 | I62: 0 | J62: =IF('Data for submission '!I76="",0,'Data for submission '!I76) -> 1 | K62: 0 | L62: =IF('Data for submission '!J76="",0,'Data for submission '!J76) -> 0 | M62: 0 | N62: =IF('Data for submission '!K76="",0,'Data for submission '!K76) -> 0 | O62: =IF(ISBLANK('Data for submission '!L76),"",'Data for submission '!L76) -> 
A63: 62 | B63: Ind9_Overall workforce - % by Ethnicity | C63: 0 | D63: =IF('Data for submission '!F77="",0,'Data for submission '!F77) -> 0.8393615463 | E63: 0 | F63: =IF('Data for submission '!G77="",0,'Data for submission '!G77) -> 0.08419973642 | G63: 0 | H63: =IF('Data for submission '!H77="",0,'Data for submission '!H77) -> 0.07643871724 | I63: 0 | J63: =IF('Data for submission '!I77="",0,'Data for submission '!I77) -> 0.8398791541 | K63: 0 | L63: =IF('Data for submission '!J77="",0,'Data for submission '!J77) -> 0.0922169472 | M63: 0 | N63: =IF('Data for submission '!K77="",0,'Data for submission '!K77) -> 0.06790389872 | O63: =IF(ISBLANK('Data for submission '!L77),"",'Data for submission '!L77) -> 
A64: 63 | B64: Ind9_Difference (Total Board -Overall workforce ) | C64: 0 | D64: =IF('Data for submission '!F78="",0,'Data for submission '!F78) -> 0.0177813108 | E64: 0 | F64: =IF('Data for submission '!G78="",0,'Data for submission '!G78) -> 0.05865740644 | G64: 0 | H64: =IF('Data for submission '!H78="",0,'Data for submission '!H78) -> -0.07643871724 | I64: 0 | J64: =IF('Data for submission '!I78="",0,'Data for submission '!I78) -> 0.083197769 | K64: 0 | L64: =IF('Data for submission '!J78="",0,'Data for submission '!J78) -> -0.01529387028 | M64: 0 | N64: =IF('Data for submission '!K78="",0,'Data for submission '!K78) -> -0.06790389872 | O64: =IF(ISBLANK('Data for submission '!L78),"",'Data for submission '!L78) -> 
